{"text_format":"1","workbook":"xlsx","n_sheets":27,"sheets":["Entry Form 2016","Team Summary Form","1","2","3","4","5","6","7","8","9","10","11","12","13","14","15","16","17","18","19","20","21","22","23","24","25"],"not_rendered":{"charts":0,"images":1,"macros":1,"external_links":0,"defined_names":27,"comments":0,"pivot_tables":0},"unopened":[],"bounds":{"document_bytes":16777216,"sheet_cells":100000,"rows_first":2000,"rows_last":500,"rows_between":2000,"halvings":0,"cell_chars":16384,"cell_head_chars":4096},"cells_cut":0,"cells_raw":0,"read":"whole","date_system":"1900"}

{"sheet":"Entry Form 2016","index":0,"n_rows":29,"n_cols":22,"rows_kept":29,"cut":false,"hidden":false,"merged":[[13,1,13,8],[13,10,13,14],[16,1,16,14],[20,1,20,14],[25,2,25,3],[25,6,25,9],[15,1,15,14],[18,1,18,14],[19,1,19,14],[26,2,26,3],[26,6,26,9],[27,2,27,3],[27,6,27,9],[28,2,28,3],[28,6,28,9],[28,11,28,14],[29,2,29,3],[29,6,29,9],[30,2,30,3],[30,6,30,9],[30,11,30,14],[31,2,31,3],[31,6,31,9],[32,2,32,3],[32,6,32,9],[33,2,33,3],[33,6,33,9],[34,2,34,3],[34,6,34,9],[34,12,34,14],[35,2,35,3],[35,6,35,9],[35,12,35,14],[36,2,36,3],[36,6,36,9],[36,12,36,14],[37,2,37,3],[37,6,37,9],[37,12,37,14],[38,2,38,3],[38,6,38,9],[38,12,38,14],[39,2,39,3],[39,6,39,9],[39,12,39,14],[40,2,40,3],[40,6,40,9],[40,12,40,14],[41,2,41,3],[41,6,41,9],[41,12,41,14],[42,2,42,3],[42,6,42,9],[42,12,42,14],[43,2,43,3],[43,6,43,9],[43,12,43,14],[44,2,44,3],[44,6,44,9],[45,2,45,3],[45,6,45,9],[46,2,46,3],[46,6,46,9],[47,2,47,3],[47,6,47,9],[48,2,48,3],[48,6,48,9],[49,2,49,3],[49,6,49,9],[50,2,50,3],[50,6,50,9],[51,2,51,3],[51,6,51,9],[52,2,52,3],[52,6,52,9],[53,2,53,3],[53,6,53,9],[54,2,54,3],[54,6,54,9],[55,2,55,3],[55,6,55,9],[62,2,62,3],[62,6,62,9],[17,1,17,14],[9,1,9,14],[59,2,59,3],[59,6,59,9],[60,2,60,3],[60,6,60,9],[61,2,61,3],[61,6,61,9],[56,2,56,3],[56,6,56,9],[57,2,57,3],[57,6,57,9],[58,2,58,3],[58,6,58,9]]}
[]
[null,null,null,null,null,null,null,null,null,null,null,null,null,null,null,null,null,"FEMALE",1,1,"50m","Freestyle"]
[null,null,null,null,null,null,null,null,null,null,null,null,null,null,null,null,null,"MALE",2,2,"100m","Backstroke"]
[null,null,null,null,null,null,null,null,null,null,null,null,null,null,null,null,null,null,3,3,"200m","Breaststroke"]
[null,null,null,null,null,null,null,null,null,null,null,null,null,null,null,null,null,null,4,4,"400m","Butterfly"]
[null,null,null,null,null,null,null,null,null,null,null,null,null,null,null,null,null,null,5,5,"800m","Ind Medley"]
[null,null,null,null,null,null,null,null,null,null,null,null,null,null,null,null,null,null,6,6,"1500m"]
[null,null,null,null,null,null,null,null,null,null,null,null,null,null,null,null,null,null,9,9,"25K"]
[null,null,null,null,null,null,null,null,null,null,null,null,null,null,null,null,null,null,10,10]
[null,"ENTRY FORM",null,null,null,null,null,null,null,null,null,null,null,null,null,null,null,null,11,11]
[]
[null,null,null,null,null,null,null,null,null,null,null,null,null,null,null,null,null,null,10,10]
[null,"Federation/ Club:",null,null,null,null,null,null,null,null,"Country:",null,null,null,null,null,null,null,11,11]
[null,null,null,null,null,null,null,null,null,null,null,null,null,null,null,null,null,null,12,12]
[null,null,null,null,null,null,null,null,null,null,null,null,null,null,null,null,null,null,13]
[null," ",null,null,null,null,null,null,null,null,null,null,null,null,null,null,null,null,12,12]
[null,"REMEMBER THAT:"]
[null,"This form must be send to the OC no later than Tuesday 31th May 2016"]
[null,"Please return form by email to natacio@natacio.cat and ciutatdebarcelona@cnsantandreu.com",null,null,null,null,null,null,null,null,null,null,null,null,null,null,null,null,13]
[null,"Please complete form in BLOCK LETTERS in English",null,null,null,null,null,null,null,null,null,null,null,null,null,null,null,null,20]
[null,"Complete 1 Team Summary Form and 1 Individual Entry Form for each swimmer",null,null,null,null,null,null,null,null,null,null,null,null,null,null,null,null,21]
[null,null,null,null,null,null,null,null,null,null,null,null,null,null,null,null,null,null,22]
[null,null,null,null,null,null,null,null,null,null,null,null,null,null,null,null,null,null,23]
[null,null,null,null,null,null,null,null,null,null,null,null,null,null,null,null,null,null,24]
[null,null,null,null,null,null,null,null,null,null,null,null,null,null,null," "]
[null,null,null,null,null,null,null,null,null,null,null,null,null,null,null,null,null,null,28]
[null,null,null,null,null,null,null,null,null,null,null,null,null,null,null,null,null,null,29]
[null,null,null,null,null,null,null,null,null,null,null,null,null,null,null,null,null,null,30]
[null,null,null,null,null,null,null,null,null,null,null,null,null,null,null,null,null,null,31]

{"sheet":"Team Summary Form","index":1,"n_rows":60,"n_cols":22,"rows_kept":60,"cut":false,"hidden":false,"merged":[[5,2,5,13],[6,1,6,14],[7,1,7,14],[8,1,8,14],[12,1,12,8],[12,10,12,14],[25,11,25,14],[27,11,27,14],[32,12,32,14],[33,12,33,14],[34,12,34,14],[31,12,31,14],[38,12,38,14],[30,6,30,9],[35,12,35,14],[36,12,36,14],[37,12,37,14],[34,6,34,9],[35,6,35,9],[36,6,36,9],[31,6,31,9],[33,6,33,9],[30,2,30,3],[31,2,31,3],[29,6,29,9],[26,2,26,3],[27,2,27,3],[28,2,28,3],[28,6,28,9],[20,2,20,3],[21,2,21,3],[22,2,22,3],[23,2,23,3],[24,2,24,3],[20,6,20,9],[21,6,21,9],[22,6,22,9],[23,6,23,9],[24,6,24,9],[21,12,21,14],[37,2,37,3],[37,6,37,9],[38,2,38,3],[38,6,38,9],[35,2,35,3],[36,2,36,3],[25,6,25,9],[26,6,26,9],[27,6,27,9],[25,2,25,3],[32,2,32,3],[33,2,33,3],[34,2,34,3],[32,6,32,9],[29,2,29,3],[39,2,39,3],[39,6,39,9],[40,2,40,3],[40,6,40,9],[41,2,41,3],[41,6,41,9],[42,2,42,3],[42,6,42,9],[43,2,43,3],[43,6,43,9],[44,2,44,3],[44,6,44,9],[50,2,50,3],[50,6,50,9],[45,2,45,3],[45,6,45,9],[46,2,46,3],[46,6,46,9],[47,2,47,3],[47,6,47,9],[59,2,59,3],[59,6,59,9],[54,2,54,3],[54,6,54,9],[55,2,55,3],[55,6,55,9],[56,2,56,3],[56,6,56,9],[39,12,39,14],[40,12,40,14],[57,2,57,3],[57,6,57,9],[58,2,58,3],[58,6,58,9],[51,2,51,3],[51,6,51,9],[52,2,52,3],[52,6,52,9],[53,2,53,3],[53,6,53,9],[48,2,48,3],[48,6,48,9],[49,2,49,3],[49,6,49,9]]}
[]
[null,null,null,null,null,null,null,null,null,null,null,null,null,null,null,null,null,"FEMALE",1,1,"50m","Freestyle"]
[null,null,null,null,null,null,null,null,null,null,null,null,null,null,null,null,null,"MALE",2,2,"100m","Backstroke"]
[null,null,null,null,null,null,null,null,null,null,null,null,null,null,null,null,null,null,3,3,"200m","Breaststroke"]
[null,null,null,null,null,null,null,null,null,null,null,null,null,null,null,null,null,null,4,4,"400m","Butterfly"]
[null,null,"TEAM SUMMARY FORM",null,null,null,null,null,null,null,null,null,null,null,null,null,null,null,5,5,"800m","Ind Medley"]
[null,"To be received by Barcelona OC no later than Tuesday 31th May 2016",null,null,null,null,null,null,null,null,null,null,null,null,null,null,null,null,6,6,"1500m"]
[null,"Please return form by email to natacio@natacio.cat and ciutatdebarcelona@cnsantandreu.com",null,null,null,null,null,null,null,null,null,null,null,null,null,null,null,null,7,7,"5K"]
[null,"Please complete form in BLOCK LETTERS in English",null,null,null,null,null,null,null,null,null,null,null,null,null,null,null,null,8,8,"10K"]
[null,null,null,null,null,null,null,null,null,null,null,null,null,null,null,null,null,null,9,9,"25K"]
[null,null,null,null,null,null,null,null,null,null,null,null,null,null,null,null,null,null,10,10]
[null,"Federation/ Club:",null,null,null,null,null,null,null,null,"Country:",null,null,null,null,null,null,null,11,11]
[null,null,null,null,null,null,null,null,null,null,{"$f":"IF('Entry Form 2016'!K14=\"\",\"\",'Entry Form 2016'!K14)","v":""},null,null,null,null,null,null,null,12,12]
[null,null,null,null,null,null,null,null,null,null,null,null,null,null,null,null,null,null,13]
[null,null,null,null,null,null,null,null,null,null,null,null,null,null,null,null,null,null,20]
[null,"TEAM SUMMARY",null,null,null,null,null,null,null,null,null,null,null,null,null,null,null,null,21]
[null,null,null,null,null,null,null,null,null,null,null,null,null,null,null,null,null,null,22]
[null,null,null,null,null,null,null,null,null,null,null,null,null,null,null,null,null,null,23]
[null,"Female swimmers",null,null,null,"Male Swimmers",null,null,null,null,null,"Team Officials",null,null,null,null,null,null,24]
[null,"First Name & Surname",null,null,null,"First Name & Surname",null,null,null,null,null,"First Name & Surname",null,null,null," "]
[" ",1,null,null,null,1," ",null,null,null,null,"Team Leader",null,null,null,null,null,null,25]
[null,2,null,null,null,2,null,null,null,null,null,1,null,null,null,null,null,null,27]
[null,3,null,null,null,3,null,null,null,null,null,null,null,null,null,null,null,null,28]
[null,4,null,null,null,4,null,null,null,null,null,"Contact details during competition:",null,null,null,null,null,null,29]
[null,5,null,null,null,5,null,null,null,null,null,"Telephone:",null,null,null,null,null,null,30]
[null,6,null,null,null,6,null,null,null,null,null,null,null,null,null,null,null,null,31]
[null,7,null,null,null,7,null,null,null,null,null,"Email address:"]
[null,8,null,null,null,8]
[null,9,null,null,null,9,null,null,null,null,null," "]
[null,10,null,null,null,10]
[null,11,null,null,null,11,null,null,null,null,null,"Coaches"]
[null,12,null,null,null,12,null,null,null,null,null,1]
[null,13,null,null,null,13,null,null,null,null,null,2]
[null,14,null,null,null,14,null,null,null,null,null,3]
[null,15,null,null,null,15,null,null,null,null,null,4," "]
[null,16,null,null,null,16,null,null,null,null,null,5]
[null,17,null,null,null,17,null,null,null,null,null,6]
[null,18,null,null,null,18,null,null,null,null,null,7]
[null,19,null,null,null,19,null,null,null,null,null,8]
[null,20,null,null,null,20,null,null,null,null,null,9]
[null,21,null,null,null,21,null,null,null,null,null,10]
[null,22,null,null,null,22]
[null,23,null,null,null,23]
[null,24,null,null,null,24]
[null,25,null,null,null,25]
[null,26,null,null,null,26]
[null,27,null,null,null,27]
[null,28,null,null,null,28]
[null,29,null,null,null,29]
[null,30,null,null,null,30]
[null,31,null,null,null,31]
[null,32,null,null,null,32]
[null,33,null,null,null,33]
[null,34,null,null,null,34]
[null,35,null,null,null,35]
[null,36,null,null,null,36]
[null,37,null,null,null,37]
[null,38,null,null,null,38]
[null,39,null,null,null,39]
[null,40,null,null,null,40]

{"sheet":"1","index":2,"n_rows":50,"n_cols":23,"rows_kept":50,"cut":false,"hidden":false,"merged":[[6,1,6,15],[7,1,7,15],[8,1,8,15],[13,1,13,9],[13,11,13,15],[53,3,53,8],[39,8,39,10],[39,12,39,15],[40,8,40,10],[16,1,16,6],[16,8,16,15],[29,8,29,10],[29,12,29,15],[50,3,50,8],[51,3,51,8],[52,3,52,8],[27,8,27,10],[26,8,26,10],[27,12,27,15],[28,8,28,10],[28,12,28,15],[30,8,30,10],[30,12,30,15],[31,8,31,10],[31,12,31,15],[32,8,32,10],[32,12,32,15],[33,8,33,10],[33,12,33,15],[34,8,34,10],[34,12,34,15],[35,8,35,10],[35,12,35,15],[54,3,54,8],[5,2,5,14],[9,1,9,15],[40,12,40,15],[41,8,41,10],[41,12,41,15],[42,8,42,10],[42,12,42,15],[43,8,43,10],[43,12,43,15],[36,8,36,10],[36,12,36,15],[37,8,37,10],[37,12,37,15],[38,8,38,10],[38,12,38,15]]}
[]
[null,null,null,null,null,null,null,null,null,null,null,null,null,null,null,null,null,null,"FEMALE",1,1,"50m","Freestyle"]
[null,null,null,null,null,null,null,null,null,null,null,null,null,null,null,null,null,null,"MALE",2,2,"100m","Backstroke"]
[null,null,null,null,null,null,null,null,null,null,null,null,null,null,null,null,null,null,null,3,3,"200m","Breaststroke"]
[null,null,null,null,null,null,null,null,null,null,null,null,null,null,null,null,null,null,null,4,4,"400m","Butterfly"]
[null,null,"INDIVIDUAL ENTRY FORM",null,null,null,null,null,null,null,null,null,null,null,null,null,null,null,null,5,5,"800m","Ind Medley"]
[null,"To be received by Barcelona OC no later than Tuesday 31th May 2016",null,null,null,null,null,null,null,null,null,null,null,null,null,null,null,null,null,6,6,"1500m"]
[null,"Please return form by email to natacio@natacio.cat and ciutatdebarcelona@cnsantandreu.com",null,null,null,null,null,null,null,null,null,null,null,null,null,null,null,null,null,7,7,"5K"]
[null,"Please complete form in BLOCK LETTERS in English",null,null,null,null,null,null,null,null,null,null,null,null,null,null,null,null,null,8,8,"10K"]
[null,"REMEMBER, this form must be send with the TEAM SUMMARY FORM",null,null,null,null,null,null,null,null,null,null,null,null,null,null,null,null,null,9,9,"25K"]
[null,null,null,null,null,null,null,null,null,null,null,null,null,null,null,null,null,null,null,10,10]
[null,null,null,null,null,null,null,null,null,null,null,null,null,null,null,null,null,null,null,11,11]
[null,"Federation/ Club:",null,null,null,null,null,null,null,null,null,"Country:",null,null,null,null,null,null,null,12,12]
[null,{"$f":"+'Team Summary Form'!B13","v":0},null,null,null,null,null,null,null,null,null,{"$f":"+'Team Summary Form'!K13","v":""},null,null,null,null,null,null,null,13]
[null,null,null,null,null,null,null,null,null,null,null,null,null,null,null,null,null,null,null,14]
[null,"First Name (as shown on passport):",null,null,null,null,null,null,"Surname (as shown on passport):",null,null,null,null,null,null,null,null,null,null,15,null,null,"hfgf"]
[null,null,null,null,null,null,null,null,null,null,null,null,null,null,null,null,null,null,null,16]
[null," ",null,null,null,null,null,null,null,null,null,null,null,null,null,null,null,null,null,17]
[null,"Gender:",null,null,null,null,null,null,"Date of Birth (Day / Month / Year):",null,null,null,null,null,null,null,null,null,null,18]
[null,null,null,null,null,null,null,null,null,null,null,null,null,null,null,null,null,null,null,19]
[null,null,null,null,null,null,null,null,null,null,null,null,null,null,null,null,null,null,null,20]
[null,null,null,null,null,null,null,null,null,null,null,null,null,null,null,null,null,null,null,21]
[null,"ENTRY INFORMATION",null,null,null,null,null,null,null,null,null,null,null,null,null,null,null,null,null,22]
[null,null,null,null,null,null,null,null,null,null,null,null,null,null,null,null,null,null,null,23]
[null,null,null,null,null,null,null,null,null,null,null,null,null,null,null,null,null,null,null,24]
[null,"Event (please tick √)",null,null,null,null,"Entry Time",null,"Date Recorded",null,null,null,"Event/ Location",null,null,null,null,null,null,25]
[null,null,null,null,null,null,"(mm:ss,cc)",null,"(dd/mm/yyyy)",null,null,null,null,null,null,null,null,null,null,26]
[null,"50m",null,"Freestyle",null,null,null,null,null,null,null,null,null,null,null,null,null,null,null,27]
[null,"100m",null,"Freestyle",null,null,null,null,null,null,null,null,null,null,null,null,null,null,null,28]
[null,"200m",null,"Freestyle",null,null,null,null,null,null,null,null,null,null,null,null,null,null,null,29]
[null,"400m",null,"Freestyle",null,null,null,null,null,null,null,null,null,null,null,null,null,null,null,30]
[null,"800m",null,"Freestyle",null,null,null,null,null,null,null,null,null,null,null,null,null,null,null,31]
[null,"1500m",null,"Freestyle"]
[null,"50m",null,"Backstroke"]
[null,"100m",null,"Backstroke"]
[null,"200m",null,"Backstroke"]
[null,"50m",null,"Breaststroke"]
[null,"100m",null,"Breaststroke"]
[null,"200m",null,"Breaststroke"]
[null,"50m",null,"Butterfly"]
[null,"100m",null,"Butterfly"]
[null,"200m",null,"Butterfly"]
[null,"200m",null,"Ind Medley"]
[null,"400m",null,"Ind Medley"]
[]
[]
[null,"MEDIA INFORMATION"]
[]
[null,"Best Performances",null,null,null,null,null,null,null,null," ",null,"Event",null,null,"Time"]
[null,"Seson",null,"Championship",null,null,null,null,null,null,"Position",null,"distance","style"," ","(mm:ss,cc)"]

{"sheet":"2","index":3,"n_rows":50,"n_cols":23,"rows_kept":50,"cut":false,"hidden":false,"merged":[[50,3,50,8],[51,3,51,8],[52,3,52,8],[53,3,53,8],[54,3,54,8],[41,8,41,10],[41,12,41,15],[42,8,42,10],[42,12,42,15],[43,8,43,10],[43,12,43,15],[38,8,38,10],[38,12,38,15],[39,8,39,10],[39,12,39,15],[40,8,40,10],[40,12,40,15],[35,8,35,10],[35,12,35,15],[36,8,36,10],[36,12,36,15],[37,8,37,10],[37,12,37,15],[32,8,32,10],[32,12,32,15],[33,8,33,10],[33,12,33,15],[34,8,34,10],[34,12,34,15],[29,8,29,10],[29,12,29,15],[30,8,30,10],[30,12,30,15],[31,8,31,10],[31,12,31,15],[28,8,28,10],[28,12,28,15],[5,2,5,14],[6,1,6,15],[7,1,7,15],[8,1,8,15],[9,1,9,15],[13,1,13,9],[13,11,13,15],[16,1,16,6],[16,8,16,15],[26,8,26,10],[27,8,27,10],[27,12,27,15]]}
[]
[null,null,null,null,null,null,null,null,null,null,null,null,null,null,null,null,null,null,"FEMALE",1,1,"50m","Freestyle"]
[null,null,null,null,null,null,null,null,null,null,null,null,null,null,null,null,null,null,"MALE",2,2,"100m","Backstroke"]
[null,null,null,null,null,null,null,null,null,null,null,null,null,null,null,null,null,null,null,3,3,"200m","Breaststroke"]
[null,null,null,null,null,null,null,null,null,null,null,null,null,null,null,null,null,null,null,4,4,"400m","Butterfly"]
[null,null,"INDIVIDUAL ENTRY FORM",null,null,null,null,null,null,null,null,null,null,null,null,null,null,null,null,5,5,"800m","Ind Medley"]
[null,"To be received by Barcelona OC no later than Tuesday 31th May 2016",null,null,null,null,null,null,null,null,null,null,null,null,null,null,null,null,null,6,6,"1500m"]
[null,"Please return form by email to natacio@natacio.cat and ciutatdebarcelona@cnsantandreu.com",null,null,null,null,null,null,null,null,null,null,null,null,null,null,null,null,null,7,7,"5K"]
[null,"Please complete form in BLOCK LETTERS in English",null,null,null,null,null,null,null,null,null,null,null,null,null,null,null,null,null,8,8,"10K"]
[null,"REMEMBER, this form must be send with the TEAM SUMMARY FORM",null,null,null,null,null,null,null,null,null,null,null,null,null,null,null,null,null,9,9,"25K"]
[null,null,null,null,null,null,null,null,null,null,null,null,null,null,null,null,null,null,null,10,10]
[null,null,null,null,null,null,null,null,null,null,null,null,null,null,null,null,null,null,null,11,11]
[null,"Federation/ Club:",null,null,null,null,null,null,null,null,null,"Country:",null,null,null,null,null,null,null,12,12]
[null,{"$f":"+'Team Summary Form'!B13","v":0},null,null,null,null,null,null,null,null,null,{"$f":"+'Team Summary Form'!K13","v":""},null,null,null,null,null,null,null,13]
[null,null,null,null,null,null,null,null,null,null,null,null,null,null,null,null,null,null,null,14]
[null,"First Name (as shown on passport):",null,null,null,null,null,null,"Surname (as shown on passport):",null,null,null,null,null,null,null,null,null,null,15,null,null,"hfgf"]
[null,null,null,null,null,null,null,null,null,null,null,null,null,null,null,null,null,null,null,16]
[null," ",null,null,null,null,null,null,null,null,null,null,null,null,null,null,null,null,null,17]
[null,"Gender:",null,null,null,null,null,null,"Date of Birth (Day / Month / Year):",null,null,null,null,null,null,null,null,null,null,18]
[null,null,null,null,null,null,null,null,null,null,null,null,null,null,null,null,null,null,null,19]
[null,null,null,null,null,null,null,null,null,null,null,null,null,null,null,null,null,null,null,20]
[null,null,null,null,null,null,null,null,null,null,null,null,null,null,null,null,null,null,null,21]
[null,"ENTRY INFORMATION",null,null,null,null,null,null,null,null,null,null,null,null,null,null,null,null,null,22]
[null,null,null,null,null,null,null,null,null,null,null,null,null,null,null,null,null,null,null,23]
[null,null,null,null,null,null,null,null,null,null,null,null,null,null,null,null,null,null,null,24]
[null,"Event (please tick √)",null,null,null,null,"Entry Time",null,"Date Recorded",null,null,null,"Event/ Location",null,null,null,null,null,null,25]
[null,null,null,null,null,null,"(mm:ss,cc)",null,"(dd/mm/yyyy)",null,null,null,null,null,null,null,null,null,null,26]
[null,"50m",null,"Freestyle",null,null,null,null,null,null,null,null,null,null,null,null,null,null,null,27]
[null,"100m",null,"Freestyle",null,null,null,null,null,null,null,null,null,null,null,null,null,null,null,28]
[null,"200m",null,"Freestyle",null,null,null,null,null,null,null,null,null,null,null,null,null,null,null,29]
[null,"400m",null,"Freestyle",null,null,null,null,null,null,null,null,null,null,null,null,null,null,null,30]
[null,"800m",null,"Freestyle",null,null,null,null,null,null,null,null,null,null,null,null,null,null,null,31]
[null,"1500m",null,"Freestyle"]
[null,"50m",null,"Backstroke"]
[null,"100m",null,"Backstroke"]
[null,"200m",null,"Backstroke"]
[null,"50m",null,"Breaststroke"]
[null,"100m",null,"Breaststroke"]
[null,"200m",null,"Breaststroke"]
[null,"50m",null,"Butterfly"]
[null,"100m",null,"Butterfly"]
[null,"200m",null,"Butterfly"]
[null,"200m",null,"Ind Medley"]
[null,"400m",null,"Ind Medley"]
[]
[]
[null,"MEDIA INFORMATION"]
[]
[null,"Best Performances",null,null,null,null,null,null,null,null," ",null,"Event",null,null,"Time"]
[null,"Seson",null,"Championship",null,null,null,null,null,null,"Position",null,"distance","style"," ","(mm:ss,cc)"]

{"sheet":"3","index":4,"n_rows":50,"n_cols":23,"rows_kept":50,"cut":false,"hidden":false,"merged":[[50,3,50,8],[51,3,51,8],[52,3,52,8],[53,3,53,8],[54,3,54,8],[41,8,41,10],[41,12,41,15],[42,8,42,10],[42,12,42,15],[43,8,43,10],[43,12,43,15],[38,8,38,10],[38,12,38,15],[39,8,39,10],[39,12,39,15],[40,8,40,10],[40,12,40,15],[35,8,35,10],[35,12,35,15],[36,8,36,10],[36,12,36,15],[37,8,37,10],[37,12,37,15],[32,8,32,10],[32,12,32,15],[33,8,33,10],[33,12,33,15],[34,8,34,10],[34,12,34,15],[29,8,29,10],[29,12,29,15],[30,8,30,10],[30,12,30,15],[31,8,31,10],[31,12,31,15],[28,8,28,10],[28,12,28,15],[5,2,5,14],[6,1,6,15],[7,1,7,15],[8,1,8,15],[9,1,9,15],[13,1,13,9],[13,11,13,15],[16,1,16,6],[16,8,16,15],[26,8,26,10],[27,8,27,10],[27,12,27,15]]}
[]
[null,null,null,null,null,null,null,null,null,null,null,null,null,null,null,null,null,null,"FEMALE",1,1,"50m","Freestyle"]
[null,null,null,null,null,null,null,null,null,null,null,null,null,null,null,null,null,null,"MALE",2,2,"100m","Backstroke"]
[null,null,null,null,null,null,null,null,null,null,null,null,null,null,null,null,null,null,null,3,3,"200m","Breaststroke"]
[null,null,null,null,null,null,null,null,null,null,null,null,null,null,null,null,null,null,null,4,4,"400m","Butterfly"]
[null,null,"INDIVIDUAL ENTRY FORM",null,null,null,null,null,null,null,null,null,null,null,null,null,null,null,null,5,5,"800m","Ind Medley"]
[null,"To be received by Barcelona OC no later than Tuesday 31th May 2016",null,null,null,null,null,null,null,null,null,null,null,null,null,null,null,null,null,6,6,"1500m"]
[null,"Please return form by email to natacio@natacio.cat and ciutatdebarcelona@cnsantandreu.com",null,null,null,null,null,null,null,null,null,null,null,null,null,null,null,null,null,7,7,"5K"]
[null,"Please complete form in BLOCK LETTERS in English",null,null,null,null,null,null,null,null,null,null,null,null,null,null,null,null,null,8,8,"10K"]
[null,"REMEMBER, this form must be send with the TEAM SUMMARY FORM",null,null,null,null,null,null,null,null,null,null,null,null,null,null,null,null,null,9,9,"25K"]
[null,null,null,null,null,null,null,null,null,null,null,null,null,null,null,null,null,null,null,10,10]
[null,null,null,null,null,null,null,null,null,null,null,null,null,null,null,null,null,null,null,11,11]
[null,"Federation/ Club:",null,null,null,null,null,null,null,null,null,"Country:",null,null,null,null,null,null,null,12,12]
[null,{"$f":"+'Team Summary Form'!B13","v":0},null,null,null,null,null,null,null,null,null,{"$f":"+'Team Summary Form'!K13","v":""},null,null,null,null,null,null,null,13]
[null,null,null,null,null,null,null,null,null,null,null,null,null,null,null,null,null,null,null,14]
[null,"First Name (as shown on passport):",null,null,null,null,null,null,"Surname (as shown on passport):",null,null,null,null,null,null,null,null,null,null,15,null,null,"hfgf"]
[null,null,null,null,null,null,null,null,null,null,null,null,null,null,null,null,null,null,null,16]
[null," ",null,null,null,null,null,null,null,null,null,null,null,null,null,null,null,null,null,17]
[null,"Gender:",null,null,null,null,null,null,"Date of Birth (Day / Month / Year):",null,null,null,null,null,null,null,null,null,null,18]
[null,null,null,null,null,null,null,null,null,null,null,null,null,null,null,null,null,null,null,19]
[null,null,null,null,null,null,null,null,null,null,null,null,null,null,null,null,null,null,null,20]
[null,null,null,null,null,null,null,null,null,null,null,null,null,null,null,null,null,null,null,21]
[null,"ENTRY INFORMATION",null,null,null,null,null,null,null,null,null,null,null,null,null,null,null,null,null,22]
[null,null,null,null,null,null,null,null,null,null,null,null,null,null,null,null,null,null,null,23]
[null,null,null,null,null,null,null,null,null,null,null,null,null,null,null,null,null,null,null,24]
[null,"Event (please tick √)",null,null,null,null,"Entry Time",null,"Date Recorded",null,null,null,"Event/ Location",null,null,null,null,null,null,25]
[null,null,null,null,null,null,"(mm:ss,cc)",null,"(dd/mm/yyyy)",null,null,null,null,null,null,null,null,null,null,26]
[null,"50m",null,"Freestyle",null,null,null,null,null,null,null,null,null,null,null,null,null,null,null,27]
[null,"100m",null,"Freestyle",null,null,null,null,null,null,null,null,null,null,null,null,null,null,null,28]
[null,"200m",null,"Freestyle",null,null,null,null,null,null,null,null,null,null,null,null,null,null,null,29]
[null,"400m",null,"Freestyle",null,null,null,null,null,null,null,null,null,null,null,null,null,null,null,30]
[null,"800m",null,"Freestyle",null,null,null,null,null,null,null,null,null,null,null,null,null,null,null,31]
[null,"1500m",null,"Freestyle"]
[null,"50m",null,"Backstroke"]
[null,"100m",null,"Backstroke"]
[null,"200m",null,"Backstroke"]
[null,"50m",null,"Breaststroke"]
[null,"100m",null,"Breaststroke"]
[null,"200m",null,"Breaststroke"]
[null,"50m",null,"Butterfly"]
[null,"100m",null,"Butterfly"]
[null,"200m",null,"Butterfly"]
[null,"200m",null,"Ind Medley"]
[null,"400m",null,"Ind Medley"]
[]
[]
[null,"MEDIA INFORMATION"]
[]
[null,"Best Performances",null,null,null,null,null,null,null,null," ",null,"Event",null,null,"Time"]
[null,"Seson",null,"Championship",null,null,null,null,null,null,"Position",null,"distance","style"," ","(mm:ss,cc)"]

{"sheet":"4","index":5,"n_rows":50,"n_cols":23,"rows_kept":50,"cut":false,"hidden":false,"merged":[[50,3,50,8],[51,3,51,8],[52,3,52,8],[53,3,53,8],[54,3,54,8],[41,8,41,10],[41,12,41,15],[42,8,42,10],[42,12,42,15],[43,8,43,10],[43,12,43,15],[38,8,38,10],[38,12,38,15],[39,8,39,10],[39,12,39,15],[40,8,40,10],[40,12,40,15],[35,8,35,10],[35,12,35,15],[36,8,36,10],[36,12,36,15],[37,8,37,10],[37,12,37,15],[32,8,32,10],[32,12,32,15],[33,8,33,10],[33,12,33,15],[34,8,34,10],[34,12,34,15],[29,8,29,10],[29,12,29,15],[30,8,30,10],[30,12,30,15],[31,8,31,10],[31,12,31,15],[28,8,28,10],[28,12,28,15],[5,2,5,14],[6,1,6,15],[7,1,7,15],[8,1,8,15],[9,1,9,15],[13,1,13,9],[13,11,13,15],[16,1,16,6],[16,8,16,15],[26,8,26,10],[27,8,27,10],[27,12,27,15]]}
[]
[null,null,null,null,null,null,null,null,null,null,null,null,null,null,null,null,null,null,"FEMALE",1,1,"50m","Freestyle"]
[null,null,null,null,null,null,null,null,null,null,null,null,null,null,null,null,null,null,"MALE",2,2,"100m","Backstroke"]
[null,null,null,null,null,null,null,null,null,null,null,null,null,null,null,null,null,null,null,3,3,"200m","Breaststroke"]
[null,null,null,null,null,null,null,null,null,null,null,null,null,null,null,null,null,null,null,4,4,"400m","Butterfly"]
[null,null,"INDIVIDUAL ENTRY FORM",null,null,null,null,null,null,null,null,null,null,null,null,null,null,null,null,5,5,"800m","Ind Medley"]
[null,"To be received by Barcelona OC no later than Tuesday 31th May 2016",null,null,null,null,null,null,null,null,null,null,null,null,null,null,null,null,null,6,6,"1500m"]
[null,"Please return form by email to natacio@natacio.cat and ciutatdebarcelona@cnsantandreu.com",null,null,null,null,null,null,null,null,null,null,null,null,null,null,null,null,null,7,7,"5K"]
[null,"Please complete form in BLOCK LETTERS in English",null,null,null,null,null,null,null,null,null,null,null,null,null,null,null,null,null,8,8,"10K"]
[null,"REMEMBER, this form must be send with the TEAM SUMMARY FORM",null,null,null,null,null,null,null,null,null,null,null,null,null,null,null,null,null,9,9,"25K"]
[null,null,null,null,null,null,null,null,null,null,null,null,null,null,null,null,null,null,null,10,10]
[null,null,null,null,null,null,null,null,null,null,null,null,null,null,null,null,null,null,null,11,11]
[null,"Federation/ Club:",null,null,null,null,null,null,null,null,null,"Country:",null,null,null,null,null,null,null,12,12]
[null,{"$f":"+'Team Summary Form'!B13","v":0},null,null,null,null,null,null,null,null,null,{"$f":"+'Team Summary Form'!K13","v":""},null,null,null,null,null,null,null,13]
[null,null,null,null,null,null,null,null,null,null,null,null,null,null,null,null,null,null,null,14]
[null,"First Name (as shown on passport):",null,null,null,null,null,null,"Surname (as shown on passport):",null,null,null,null,null,null,null,null,null,null,15,null,null,"hfgf"]
[null,null,null,null,null,null,null,null,null,null,null,null,null,null,null,null,null,null,null,16]
[null," ",null,null,null,null,null,null,null,null,null,null,null,null,null,null,null,null,null,17]
[null,"Gender:",null,null,null,null,null,null,"Date of Birth (Day / Month / Year):",null,null,null,null,null,null,null,null,null,null,18]
[null,null,null,null,null,null,null,null,null,null,null,null,null,null,null,null,null,null,null,19]
[null,null,null,null,null,null,null,null,null,null,null,null,null,null,null,null,null,null,null,20]
[null,null,null,null,null,null,null,null,null,null,null,null,null,null,null,null,null,null,null,21]
[null,"ENTRY INFORMATION",null,null,null,null,null,null,null,null,null,null,null,null,null,null,null,null,null,22]
[null,null,null,null,null,null,null,null,null,null,null,null,null,null,null,null,null,null,null,23]
[null,null,null,null,null,null,null,null,null,null,null,null,null,null,null,null,null,null,null,24]
[null,"Event (please tick √)",null,null,null,null,"Entry Time",null,"Date Recorded",null,null,null,"Event/ Location",null,null,null,null,null,null,25]
[null,null,null,null,null,null,"(mm:ss,cc)",null,"(dd/mm/yyyy)",null,null,null,null,null,null,null,null,null,null,26]
[null,"50m",null,"Freestyle",null,null,null,null,null,null,null,null,null,null,null,null,null,null,null,27]
[null,"100m",null,"Freestyle",null,null,null,null,null,null,null,null,null,null,null,null,null,null,null,28]
[null,"200m",null,"Freestyle",null,null,null,null,null,null,null,null,null,null,null,null,null,null,null,29]
[null,"400m",null,"Freestyle",null,null,null,null,null,null,null,null,null,null,null,null,null,null,null,30]
[null,"800m",null,"Freestyle",null,null,null,null,null,null,null,null,null,null,null,null,null,null,null,31]
[null,"1500m",null,"Freestyle"]
[null,"50m",null,"Backstroke"]
[null,"100m",null,"Backstroke"]
[null,"200m",null,"Backstroke"]
[null,"50m",null,"Breaststroke"]
[null,"100m",null,"Breaststroke"]
[null,"200m",null,"Breaststroke"]
[null,"50m",null,"Butterfly"]
[null,"100m",null,"Butterfly"]
[null,"200m",null,"Butterfly"]
[null,"200m",null,"Ind Medley"]
[null,"400m",null,"Ind Medley"]
[]
[]
[null,"MEDIA INFORMATION"]
[]
[null,"Best Performances",null,null,null,null,null,null,null,null," ",null,"Event",null,null,"Time"]
[null,"Seson",null,"Championship",null,null,null,null,null,null,"Position",null,"distance","style"," ","(mm:ss,cc)"]

{"sheet":"5","index":6,"n_rows":50,"n_cols":23,"rows_kept":50,"cut":false,"hidden":false,"merged":[[50,3,50,8],[51,3,51,8],[52,3,52,8],[53,3,53,8],[54,3,54,8],[41,8,41,10],[41,12,41,15],[42,8,42,10],[42,12,42,15],[43,8,43,10],[43,12,43,15],[38,8,38,10],[38,12,38,15],[39,8,39,10],[39,12,39,15],[40,8,40,10],[40,12,40,15],[35,8,35,10],[35,12,35,15],[36,8,36,10],[36,12,36,15],[37,8,37,10],[37,12,37,15],[32,8,32,10],[32,12,32,15],[33,8,33,10],[33,12,33,15],[34,8,34,10],[34,12,34,15],[29,8,29,10],[29,12,29,15],[30,8,30,10],[30,12,30,15],[31,8,31,10],[31,12,31,15],[28,8,28,10],[28,12,28,15],[5,2,5,14],[6,1,6,15],[7,1,7,15],[8,1,8,15],[9,1,9,15],[13,1,13,9],[13,11,13,15],[16,1,16,6],[16,8,16,15],[26,8,26,10],[27,8,27,10],[27,12,27,15]]}
[]
[null,null,null,null,null,null,null,null,null,null,null,null,null,null,null,null,null,null,"FEMALE",1,1,"50m","Freestyle"]
[null,null,null,null,null,null,null,null,null,null,null,null,null,null,null,null,null,null,"MALE",2,2,"100m","Backstroke"]
[null,null,null,null,null,null,null,null,null,null,null,null,null,null,null,null,null,null,null,3,3,"200m","Breaststroke"]
[null,null,null,null,null,null,null,null,null,null,null,null,null,null,null,null,null,null,null,4,4,"400m","Butterfly"]
[null,null,"INDIVIDUAL ENTRY FORM",null,null,null,null,null,null,null,null,null,null,null,null,null,null,null,null,5,5,"800m","Ind Medley"]
[null,"To be received by Barcelona OC no later than Tuesday 31th May 2016",null,null,null,null,null,null,null,null,null,null,null,null,null,null,null,null,null,6,6,"1500m"]
[null,"Please return form by email to natacio@natacio.cat and ciutatdebarcelona@cnsantandreu.com",null,null,null,null,null,null,null,null,null,null,null,null,null,null,null,null,null,7,7,"5K"]
[null,"Please complete form in BLOCK LETTERS in English",null,null,null,null,null,null,null,null,null,null,null,null,null,null,null,null,null,8,8,"10K"]
[null,"REMEMBER, this form must be send with the TEAM SUMMARY FORM",null,null,null,null,null,null,null,null,null,null,null,null,null,null,null,null,null,9,9,"25K"]
[null,null,null,null,null,null,null,null,null,null,null,null,null,null,null,null,null,null,null,10,10]
[null,null,null,null,null,null,null,null,null,null,null,null,null,null,null,null,null,null,null,11,11]
[null,"Federation/ Club:",null,null,null,null,null,null,null,null,null,"Country:",null,null,null,null,null,null,null,12,12]
[null,{"$f":"+'Team Summary Form'!B13","v":0},null,null,null,null,null,null,null,null,null,{"$f":"+'Team Summary Form'!K13","v":""},null,null,null,null,null,null,null,13]
[null,null,null,null,null,null,null,null,null,null,null,null,null,null,null,null,null,null,null,14]
[null,"First Name (as shown on passport):",null,null,null,null,null,null,"Surname (as shown on passport):",null,null,null,null,null,null,null,null,null,null,15,null,null,"hfgf"]
[null,null,null,null,null,null,null,null,null,null,null,null,null,null,null,null,null,null,null,16]
[null," ",null,null,null,null,null,null,null,null,null,null,null,null,null,null,null,null,null,17]
[null,"Gender:",null,null,null,null,null,null,"Date of Birth (Day / Month / Year):",null,null,null,null,null,null,null,null,null,null,18]
[null,null,null,null,null,null,null,null,null,null,null,null,null,null,null,null,null,null,null,19]
[null,null,null,null,null,null,null,null,null,null,null,null,null,null,null,null,null,null,null,20]
[null,null,null,null,null,null,null,null,null,null,null,null,null,null,null,null,null,null,null,21]
[null,"ENTRY INFORMATION",null,null,null,null,null,null,null,null,null,null,null,null,null,null,null,null,null,22]
[null,null,null,null,null,null,null,null,null,null,null,null,null,null,null,null,null,null,null,23]
[null,null,null,null,null,null,null,null,null,null,null,null,null,null,null,null,null,null,null,24]
[null,"Event (please tick √)",null,null,null,null,"Entry Time",null,"Date Recorded",null,null,null,"Event/ Location",null,null,null,null,null,null,25]
[null,null,null,null,null,null,"(mm:ss,cc)",null,"(dd/mm/yyyy)",null,null,null,null,null,null,null,null,null,null,26]
[null,"50m",null,"Freestyle",null,null,null,null,null,null,null,null,null,null,null,null,null,null,null,27]
[null,"100m",null,"Freestyle",null,null,null,null,null,null,null,null,null,null,null,null,null,null,null,28]
[null,"200m",null,"Freestyle",null,null,null,null,null,null,null,null,null,null,null,null,null,null,null,29]
[null,"400m",null,"Freestyle",null,null,null,null,null,null,null,null,null,null,null,null,null,null,null,30]
[null,"800m",null,"Freestyle",null,null,null,null,null,null,null,null,null,null,null,null,null,null,null,31]
[null,"1500m",null,"Freestyle"]
[null,"50m",null,"Backstroke"]
[null,"100m",null,"Backstroke"]
[null,"200m",null,"Backstroke"]
[null,"50m",null,"Breaststroke"]
[null,"100m",null,"Breaststroke"]
[null,"200m",null,"Breaststroke"]
[null,"50m",null,"Butterfly"]
[null,"100m",null,"Butterfly"]
[null,"200m",null,"Butterfly"]
[null,"200m",null,"Ind Medley"]
[null,"400m",null,"Ind Medley"]
[]
[]
[null,"MEDIA INFORMATION"]
[]
[null,"Best Performances",null,null,null,null,null,null,null,null," ",null,"Event",null,null,"Time"]
[null,"Seson",null,"Championship",null,null,null,null,null,null,"Position",null,"distance","style"," ","(mm:ss,cc)"]

{"sheet":"6","index":7,"n_rows":50,"n_cols":23,"rows_kept":50,"cut":false,"hidden":false,"merged":[[50,3,50,8],[51,3,51,8],[52,3,52,8],[53,3,53,8],[54,3,54,8],[41,8,41,10],[41,12,41,15],[42,8,42,10],[42,12,42,15],[43,8,43,10],[43,12,43,15],[38,8,38,10],[38,12,38,15],[39,8,39,10],[39,12,39,15],[40,8,40,10],[40,12,40,15],[35,8,35,10],[35,12,35,15],[36,8,36,10],[36,12,36,15],[37,8,37,10],[37,12,37,15],[32,8,32,10],[32,12,32,15],[33,8,33,10],[33,12,33,15],[34,8,34,10],[34,12,34,15],[29,8,29,10],[29,12,29,15],[30,8,30,10],[30,12,30,15],[31,8,31,10],[31,12,31,15],[28,8,28,10],[28,12,28,15],[5,2,5,14],[6,1,6,15],[7,1,7,15],[8,1,8,15],[9,1,9,15],[13,1,13,9],[13,11,13,15],[16,1,16,6],[16,8,16,15],[26,8,26,10],[27,8,27,10],[27,12,27,15]]}
[]
[null,null,null,null,null,null,null,null,null,null,null,null,null,null,null,null,null,null,"FEMALE",1,1,"50m","Freestyle"]
[null,null,null,null,null,null,null,null,null,null,null,null,null,null,null,null,null,null,"MALE",2,2,"100m","Backstroke"]
[null,null,null,null,null,null,null,null,null,null,null,null,null,null,null,null,null,null,null,3,3,"200m","Breaststroke"]
[null,null,null,null,null,null,null,null,null,null,null,null,null,null,null,null,null,null,null,4,4,"400m","Butterfly"]
[null,null,"INDIVIDUAL ENTRY FORM",null,null,null,null,null,null,null,null,null,null,null,null,null,null,null,null,5,5,"800m","Ind Medley"]
[null,"To be received by Barcelona OC no later than Tuesday 31th May 2016",null,null,null,null,null,null,null,null,null,null,null,null,null,null,null,null,null,6,6,"1500m"]
[null,"Please return form by email to natacio@natacio.cat and ciutatdebarcelona@cnsantandreu.com",null,null,null,null,null,null,null,null,null,null,null,null,null,null,null,null,null,7,7,"5K"]
[null,"Please complete form in BLOCK LETTERS in English",null,null,null,null,null,null,null,null,null,null,null,null,null,null,null,null,null,8,8,"10K"]
[null,"REMEMBER, this form must be send with the TEAM SUMMARY FORM",null,null,null,null,null,null,null,null,null,null,null,null,null,null,null,null,null,9,9,"25K"]
[null,null,null,null,null,null,null,null,null,null,null,null,null,null,null,null,null,null,null,10,10]
[null,null,null,null,null,null,null,null,null,null,null,null,null,null,null,null,null,null,null,11,11]
[null,"Federation/ Club:",null,null,null,null,null,null,null,null,null,"Country:",null,null,null,null,null,null,null,12,12]
[null,{"$f":"+'Team Summary Form'!B13","v":0},null,null,null,null,null,null,null,null,null,{"$f":"+'Team Summary Form'!K13","v":""},null,null,null,null,null,null,null,13]
[null,null,null,null,null,null,null,null,null,null,null,null,null,null,null,null,null,null,null,14]
[null,"First Name (as shown on passport):",null,null,null,null,null,null,"Surname (as shown on passport):",null,null,null,null,null,null,null,null,null,null,15,null,null,"hfgf"]
[null,1925,null,null,null,null,null,null,null,null,null,null,null,null,null,null,null,null,null,16]
[null," ",null,null,null,null,null,null,null,null,null,null,null,null,null,null,null,null,null,17]
[null,"Gender:",null,null,null,null,null,null,"Date of Birth (Day / Month / Year):",null,null,null,null,null,null,null,null,null,null,18]
[null,null,null,null,null,null,null,null,null,null,null,null,null,null,null,null,null,null,null,19]
[null,null,null,null,null,null,null,null,null,null,null,null,null,null,null,null,null,null,null,20]
[null,null,null,null,null,null,null,null,null,null,null,null,null,null,null,null,null,null,null,21]
[null,"ENTRY INFORMATION",null,null,null,null,null,null,null,null,null,null,null,null,null,null,null,null,null,22]
[null,null,null,null,null,null,null,null,null,null,null,null,null,null,null,null,null,null,null,23]
[null,null,null,null,null,null,null,null,null,null,null,null,null,null,null,null,null,null,null,24]
[null,"Event (please tick √)",null,null,null,null,"Entry Time",null,"Date Recorded",null,null,null,"Event/ Location",null,null,null,null,null,null,25]
[null,null,null,null,null,null,"(mm:ss,cc)",null,"(dd/mm/yyyy)",null,null,null,null,null,null,null,null,null,null,26]
[null,"50m",null,"Freestyle",null,null,null,null,null,null,null,null,null,null,null,null,null,null,null,27]
[null,"100m",null,"Freestyle",null,null,null,null,null,null,null,null,null,null,null,null,null,null,null,28]
[null,"200m",null,"Freestyle",null,null,null,null,null,null,null,null,null,null,null,null,null,null,null,29]
[null,"400m",null,"Freestyle",null,null,null,null,null,null,null,null,null,null,null,null,null,null,null,30]
[null,"800m",null,"Freestyle",null,null,null,null,null,null,null,null,null,null,null,null,null,null,null,31]
[null,"1500m",null,"Freestyle"]
[null,"50m",null,"Backstroke"]
[null,"100m",null,"Backstroke"]
[null,"200m",null,"Backstroke"]
[null,"50m",null,"Breaststroke"]
[null,"100m",null,"Breaststroke"]
[null,"200m",null,"Breaststroke"]
[null,"50m",null,"Butterfly"]
[null,"100m",null,"Butterfly"]
[null,"200m",null,"Butterfly"]
[null,"200m",null,"Ind Medley"]
[null,"400m",null,"Ind Medley"]
[]
[]
[null,"MEDIA INFORMATION"]
[]
[null,"Best Performances",null,null,null,null,null,null,null,null," ",null,"Event",null,null,"Time"]
[null,"Seson",null,"Championship",null,null,null,null,null,null,"Position",null,"distance","style"," ","(mm:ss,cc)"]

{"sheet":"7","index":8,"n_rows":50,"n_cols":23,"rows_kept":50,"cut":false,"hidden":false,"merged":[[50,3,50,8],[51,3,51,8],[52,3,52,8],[53,3,53,8],[54,3,54,8],[41,8,41,10],[41,12,41,15],[42,8,42,10],[42,12,42,15],[43,8,43,10],[43,12,43,15],[38,8,38,10],[38,12,38,15],[39,8,39,10],[39,12,39,15],[40,8,40,10],[40,12,40,15],[35,8,35,10],[35,12,35,15],[36,8,36,10],[36,12,36,15],[37,8,37,10],[37,12,37,15],[32,8,32,10],[32,12,32,15],[33,8,33,10],[33,12,33,15],[34,8,34,10],[34,12,34,15],[29,8,29,10],[29,12,29,15],[30,8,30,10],[30,12,30,15],[31,8,31,10],[31,12,31,15],[28,8,28,10],[28,12,28,15],[5,2,5,14],[6,1,6,15],[7,1,7,15],[8,1,8,15],[9,1,9,15],[13,1,13,9],[13,11,13,15],[16,1,16,6],[16,8,16,15],[26,8,26,10],[27,8,27,10],[27,12,27,15]]}
[]
[null,null,null,null,null,null,null,null,null,null,null,null,null,null,null,null,null,null,"FEMALE",1,1,"50m","Freestyle"]
[null,null,null,null,null,null,null,null,null,null,null,null,null,null,null,null,null,null,"MALE",2,2,"100m","Backstroke"]
[null,null,null,null,null,null,null,null,null,null,null,null,null,null,null,null,null,null,null,3,3,"200m","Breaststroke"]
[null,null,null,null,null,null,null,null,null,null,null,null,null,null,null,null,null,null,null,4,4,"400m","Butterfly"]
[null,null,"INDIVIDUAL ENTRY FORM",null,null,null,null,null,null,null,null,null,null,null,null,null,null,null,null,5,5,"800m","Ind Medley"]
[null,"To be received by Barcelona OC no later than Tuesday 31th May 2016",null,null,null,null,null,null,null,null,null,null,null,null,null,null,null,null,null,6,6,"1500m"]
[null,"Please return form by email to natacio@natacio.cat and ciutatdebarcelona@cnsantandreu.com",null,null,null,null,null,null,null,null,null,null,null,null,null,null,null,null,null,7,7,"5K"]
[null,"Please complete form in BLOCK LETTERS in English",null,null,null,null,null,null,null,null,null,null,null,null,null,null,null,null,null,8,8,"10K"]
[null,"REMEMBER, this form must be send with the TEAM SUMMARY FORM",null,null,null,null,null,null,null,null,null,null,null,null,null,null,null,null,null,9,9,"25K"]
[null,null,null,null,null,null,null,null,null,null,null,null,null,null,null,null,null,null,null,10,10]
[null,null,null,null,null,null,null,null,null,null,null,null,null,null,null,null,null,null,null,11,11]
[null,"Federation/ Club:",null,null,null,null,null,null,null,null,null,"Country:",null,null,null,null,null,null,null,12,12]
[null,{"$f":"+'Team Summary Form'!B13","v":0},null,null,null,null,null,null,null,null,null,{"$f":"+'Team Summary Form'!K13","v":""},null,null,null,null,null,null,null,13]
[null,null,null,null,null,null,null,null,null,null,null,null,null,null,null,null,null,null,null,14]
[null,"First Name (as shown on passport):",null,null,null,null,null,null,"Surname (as shown on passport):",null,null,null,null,null,null,null,null,null,null,15,null,null,"hfgf"]
[null,null,null,null,null,null,null,null,null,null,null,null,null,null,null,null,null,null,null,16]
[null," ",null,null,null,null,null,null,null,null,null,null,null,null,null,null,null,null,null,17]
[null,"Gender:",null,null,null,null,null,null,"Date of Birth (Day / Month / Year):",null,null,null,null,null,null,null,null,null,null,18]
[null,null,null,null,null,null,null,null,null,null,null,null,null,null,null,null,null,null,null,19]
[null,null,null,null,null,null,null,null,null,null,null,null,null,null,null,null,null,null,null,20]
[null,null,null,null,null,null,null,null,null,null,null,null,null,null,null,null,null,null,null,21]
[null,"ENTRY INFORMATION",null,null,null,null,null,null,null,null,null,null,null,null,null,null,null,null,null,22]
[null,null,null,null,null,null,null,null,null,null,null,null,null,null,null,null,null,null,null,23]
[null,null,null,null,null,null,null,null,null,null,null,null,null,null,null,null,null,null,null,24]
[null,"Event (please tick √)",null,null,null,null,"Entry Time",null,"Date Recorded",null,null,null,"Event/ Location",null,null,null,null,null,null,25]
[null,null,null,null,null,null,"(mm:ss,cc)",null,"(dd/mm/yyyy)",null,null,null,null,null,null,null,null,null,null,26]
[null,"50m",null,"Freestyle",null,null,null,null,null,null,null,null,null,null,null,null,null,null,null,27]
[null,"100m",null,"Freestyle",null,null,null,null,null,null,null,null,null,null,null,null,null,null,null,28]
[null,"200m",null,"Freestyle",null,null,null,null,null,null,null,null,null,null,null,null,null,null,null,29]
[null,"400m",null,"Freestyle",null,null,null,null,null,null,null,null,null,null,null,null,null,null,null,30]
[null,"800m",null,"Freestyle",null,null,null,null,null,null,null,null,null,null,null,null,null,null,null,31]
[null,"1500m",null,"Freestyle"]
[null,"50m",null,"Backstroke"]
[null,"100m",null,"Backstroke"]
[null,"200m",null,"Backstroke"]
[null,"50m",null,"Breaststroke"]
[null,"100m",null,"Breaststroke"]
[null,"200m",null,"Breaststroke"]
[null,"50m",null,"Butterfly"]
[null,"100m",null,"Butterfly"]
[null,"200m",null,"Butterfly"]
[null,"200m",null,"Ind Medley"]
[null,"400m",null,"Ind Medley"]
[]
[]
[null,"MEDIA INFORMATION"]
[]
[null,"Best Performances",null,null,null,null,null,null,null,null," ",null,"Event",null,null,"Time"]
[null,"Seson",null,"Championship",null,null,null,null,null,null,"Position",null,"distance","style"," ","(mm:ss,cc)"]

{"sheet":"8","index":9,"n_rows":50,"n_cols":23,"rows_kept":50,"cut":false,"hidden":false,"merged":[[50,3,50,8],[51,3,51,8],[52,3,52,8],[53,3,53,8],[54,3,54,8],[41,8,41,10],[41,12,41,15],[42,8,42,10],[42,12,42,15],[43,8,43,10],[43,12,43,15],[38,8,38,10],[38,12,38,15],[39,8,39,10],[39,12,39,15],[40,8,40,10],[40,12,40,15],[35,8,35,10],[35,12,35,15],[36,8,36,10],[36,12,36,15],[37,8,37,10],[37,12,37,15],[32,8,32,10],[32,12,32,15],[33,8,33,10],[33,12,33,15],[34,8,34,10],[34,12,34,15],[29,8,29,10],[29,12,29,15],[30,8,30,10],[30,12,30,15],[31,8,31,10],[31,12,31,15],[28,8,28,10],[28,12,28,15],[5,2,5,14],[6,1,6,15],[7,1,7,15],[8,1,8,15],[9,1,9,15],[13,1,13,9],[13,11,13,15],[16,1,16,6],[16,8,16,15],[26,8,26,10],[27,8,27,10],[27,12,27,15]]}
[]
[null,null,null,null,null,null,null,null,null,null,null,null,null,null,null,null,null,null,"FEMALE",1,1,"50m","Freestyle"]
[null,null,null,null,null,null,null,null,null,null,null,null,null,null,null,null,null,null,"MALE",2,2,"100m","Backstroke"]
[null,null,null,null,null,null,null,null,null,null,null,null,null,null,null,null,null,null,null,3,3,"200m","Breaststroke"]
[null,null,null,null,null,null,null,null,null,null,null,null,null,null,null,null,null,null,null,4,4,"400m","Butterfly"]
[null,null,"INDIVIDUAL ENTRY FORM",null,null,null,null,null,null,null,null,null,null,null,null,null,null,null,null,5,5,"800m","Ind Medley"]
[null,"To be received by Barcelona OC no later than Tuesday 31th May 2016",null,null,null,null,null,null,null,null,null,null,null,null,null,null,null,null,null,6,6,"1500m"]
[null,"Please return form by email to natacio@natacio.cat and ciutatdebarcelona@cnsantandreu.com",null,null,null,null,null,null,null,null,null,null,null,null,null,null,null,null,null,7,7,"5K"]
[null,"Please complete form in BLOCK LETTERS in English",null,null,null,null,null,null,null,null,null,null,null,null,null,null,null,null,null,8,8,"10K"]
[null,"REMEMBER, this form must be send with the TEAM SUMMARY FORM",null,null,null,null,null,null,null,null,null,null,null,null,null,null,null,null,null,9,9,"25K"]
[null,null,null,null,null,null,null,null,null,null,null,null,null,null,null,null,null,null,null,10,10]
[null,null,null,null,null,null,null,null,null,null,null,null,null,null,null,null,null,null,null,11,11]
[null,"Federation/ Club:",null,null,null,null,null,null,null,null,null,"Country:",null,null,null,null,null,null,null,12,12]
[null,{"$f":"+'Team Summary Form'!B13","v":0},null,null,null,null,null,null,null,null,null,{"$f":"+'Team Summary Form'!K13","v":""},null,null,null,null,null,null,null,13]
[null,null,null,null,null,null,null,null,null,null,null,null,null,null,null,null,null,null,null,14]
[null,"First Name (as shown on passport):",null,null,null,null,null,null,"Surname (as shown on passport):",null,null,null,null,null,null,null,null,null,null,15,null,null,"hfgf"]
[null,null,null,null,null,null,null,null,null,null,null,null,null,null,null,null,null,null,null,16]
[null," ",null,null,null,null,null,null,null,null,null,null,null,null,null,null,null,null,null,17]
[null,"Gender:",null,null,null,null,null,null,"Date of Birth (Day / Month / Year):",null,null,null,null,null,null,null,null,null,null,18]
[null,null,null,null,null,null,null,null,null,null,null,null,null,null,null,null,null,null,null,19]
[null,null,null,null,null,null,null,null,null,null,null,null,null,null,null,null,null,null,null,20]
[null,null,null,null,null,null,null,null,null,null,null,null,null,null,null,null,null,null,null,21]
[null,"ENTRY INFORMATION",null,null,null,null,null,null,null,null,null,null,null,null,null,null,null,null,null,22]
[null,null,null,null,null,null,null,null,null,null,null,null,null,null,null,null,null,null,null,23]
[null,null,null,null,null,null,null,null,null,null,null,null,null,null,null,null,null,null,null,24]
[null,"Event (please tick √)",null,null,null,null,"Entry Time",null,"Date Recorded",null,null,null,"Event/ Location",null,null,null,null,null,null,25]
[null,null,null,null,null,null,"(mm:ss,cc)",null,"(dd/mm/yyyy)",null,null,null,null,null,null,null,null,null,null,26]
[null,"50m",null,"Freestyle",null,null,null,null,null,null,null,null,null,null,null,null,null,null,null,27]
[null,"100m",null,"Freestyle",null,null,null,null,null,null,null,null,null,null,null,null,null,null,null,28]
[null,"200m",null,"Freestyle",null,null,null,null,null,null,null,null,null,null,null,null,null,null,null,29]
[null,"400m",null,"Freestyle",null,null,null,null,null,null,null,null,null,null,null,null,null,null,null,30]
[null,"800m",null,"Freestyle",null,null,null,null,null,null,null,null,null,null,null,null,null,null,null,31]
[null,"1500m",null,"Freestyle"]
[null,"50m",null,"Backstroke"]
[null,"100m",null,"Backstroke"]
[null,"200m",null,"Backstroke"]
[null,"50m",null,"Breaststroke"]
[null,"100m",null,"Breaststroke"]
[null,"200m",null,"Breaststroke"]
[null,"50m",null,"Butterfly"]
[null,"100m",null,"Butterfly"]
[null,"200m",null,"Butterfly"]
[null,"200m",null,"Ind Medley"]
[null,"400m",null,"Ind Medley"]
[]
[]
[null,"MEDIA INFORMATION"]
[]
[null,"Best Performances",null,null,null,null,null,null,null,null," ",null,"Event",null,null,"Time"]
[null,"Seson",null,"Championship",null,null,null,null,null,null,"Position",null,"distance","style"," ","(mm:ss,cc)"]

{"sheet":"9","index":10,"n_rows":50,"n_cols":23,"rows_kept":50,"cut":false,"hidden":false,"merged":[[50,3,50,8],[51,3,51,8],[52,3,52,8],[53,3,53,8],[54,3,54,8],[41,8,41,10],[41,12,41,15],[42,8,42,10],[42,12,42,15],[43,8,43,10],[43,12,43,15],[38,8,38,10],[38,12,38,15],[39,8,39,10],[39,12,39,15],[40,8,40,10],[40,12,40,15],[35,8,35,10],[35,12,35,15],[36,8,36,10],[36,12,36,15],[37,8,37,10],[37,12,37,15],[32,8,32,10],[32,12,32,15],[33,8,33,10],[33,12,33,15],[34,8,34,10],[34,12,34,15],[29,8,29,10],[29,12,29,15],[30,8,30,10],[30,12,30,15],[31,8,31,10],[31,12,31,15],[28,8,28,10],[28,12,28,15],[5,2,5,14],[6,1,6,15],[7,1,7,15],[8,1,8,15],[9,1,9,15],[13,1,13,9],[13,11,13,15],[16,1,16,6],[16,8,16,15],[26,8,26,10],[27,8,27,10],[27,12,27,15]]}
[]
[null,null,null,null,null,null,null,null,null,null,null,null,null,null,null,null,null,null,"FEMALE",1,1,"50m","Freestyle"]
[null,null,null,null,null,null,null,null,null,null,null,null,null,null,null,null,null,null,"MALE",2,2,"100m","Backstroke"]
[null,null,null,null,null,null,null,null,null,null,null,null,null,null,null,null,null,null,null,3,3,"200m","Breaststroke"]
[null,null,null,null,null,null,null,null,null,null,null,null,null,null,null,null,null,null,null,4,4,"400m","Butterfly"]
[null,null,"INDIVIDUAL ENTRY FORM",null,null,null,null,null,null,null,null,null,null,null,null,null,null,null,null,5,5,"800m","Ind Medley"]
[null,"To be received by Barcelona OC no later than Tuesday 31th May 2016",null,null,null,null,null,null,null,null,null,null,null,null,null,null,null,null,null,6,6,"1500m"]
[null,"Please return form by email to natacio@natacio.cat and ciutatdebarcelona@cnsantandreu.com",null,null,null,null,null,null,null,null,null,null,null,null,null,null,null,null,null,7,7,"5K"]
[null,"Please complete form in BLOCK LETTERS in English",null,null,null,null,null,null,null,null,null,null,null,null,null,null,null,null,null,8,8,"10K"]
[null,"REMEMBER, this form must be send with the TEAM SUMMARY FORM",null,null,null,null,null,null,null,null,null,null,null,null,null,null,null,null,null,9,9,"25K"]
[null,null,null,null,null,null,null,null,null,null,null,null,null,null,null,null,null,null,null,10,10]
[null,null,null,null,null,null,null,null,null,null,null,null,null,null,null,null,null,null,null,11,11]
[null,"Federation/ Club:",null,null,null,null,null,null,null,null,null,"Country:",null,null,null,null,null,null,null,12,12]
[null,{"$f":"+'Team Summary Form'!B13","v":0},null,null,null,null,null,null,null,null,null,{"$f":"+'Team Summary Form'!K13","v":""},null,null,null,null,null,null,null,13]
[null,null,null,null,null,null,null,null,null,null,null,null,null,null,null,null,null,null,null,14]
[null,"First Name (as shown on passport):",null,null,null,null,null,null,"Surname (as shown on passport):",null,null,null,null,null,null,null,null,null,null,15,null,null,"hfgf"]
[null,null,null,null,null,null,null,null,null,null,null,null,null,null,null,null,null,null,null,16]
[null," ",null,null,null,null,null,null,null,null,null,null,null,null,null,null,null,null,null,17]
[null,"Gender:",null,null,null,null,null,null,"Date of Birth (Day / Month / Year):",null,null,null,null,null,null,null,null,null,null,18]
[null,null,null,null,null,null,null,null,null,null,null,null,null,null,null,null,null,null,null,19]
[null,null,null,null,null,null,null,null,null,null,null,null,null,null,null,null,null,null,null,20]
[null,null,null,null,null,null,null,null,null,null,null,null,null,null,null,null,null,null,null,21]
[null,"ENTRY INFORMATION",null,null,null,null,null,null,null,null,null,null,null,null,null,null,null,null,null,22]
[null,null,null,null,null,null,null,null,null,null,null,null,null,null,null,null,null,null,null,23]
[null,null,null,null,null,null,null,null,null,null,null,null,null,null,null,null,null,null,null,24]
[null,"Event (please tick √)",null,null,null,null,"Entry Time",null,"Date Recorded",null,null,null,"Event/ Location",null,null,null,null,null,null,25]
[null,null,null,null,null,null,"(mm:ss,cc)",null,"(dd/mm/yyyy)",null,null,null,null,null,null,null,null,null,null,26]
[null,"50m",null,"Freestyle",null,null,null,null,null,null,null,null,null,null,null,null,null,null,null,27]
[null,"100m",null,"Freestyle",null,null,null,null,null,null,null,null,null,null,null,null,null,null,null,28]
[null,"200m",null,"Freestyle",null,null,null,null,null,null,null,null,null,null,null,null,null,null,null,29]
[null,"400m",null,"Freestyle",null,null,null,null,null,null,null,null,null,null,null,null,null,null,null,30]
[null,"800m",null,"Freestyle",null,null,null,null,null,null,null,null,null,null,null,null,null,null,null,31]
[null,"1500m",null,"Freestyle"]
[null,"50m",null,"Backstroke"]
[null,"100m",null,"Backstroke"]
[null,"200m",null,"Backstroke"]
[null,"50m",null,"Breaststroke"]
[null,"100m",null,"Breaststroke"]
[null,"200m",null,"Breaststroke"]
[null,"50m",null,"Butterfly"]
[null,"100m",null,"Butterfly"]
[null,"200m",null,"Butterfly"]
[null,"200m",null,"Ind Medley"]
[null,"400m",null,"Ind Medley"]
[]
[]
[null,"MEDIA INFORMATION"]
[]
[null,"Best Performances",null,null,null,null,null,null,null,null," ",null,"Event",null,null,"Time"]
[null,"Seson",null,"Championship",null,null,null,null,null,null,"Position",null,"distance","style"," ","(mm:ss,cc)"]

{"sheet":"10","index":11,"n_rows":50,"n_cols":23,"rows_kept":50,"cut":false,"hidden":false,"merged":[[50,3,50,8],[51,3,51,8],[52,3,52,8],[53,3,53,8],[54,3,54,8],[41,8,41,10],[41,12,41,15],[42,8,42,10],[42,12,42,15],[43,8,43,10],[43,12,43,15],[38,8,38,10],[38,12,38,15],[39,8,39,10],[39,12,39,15],[40,8,40,10],[40,12,40,15],[35,8,35,10],[35,12,35,15],[36,8,36,10],[36,12,36,15],[37,8,37,10],[37,12,37,15],[32,8,32,10],[32,12,32,15],[33,8,33,10],[33,12,33,15],[34,8,34,10],[34,12,34,15],[29,8,29,10],[29,12,29,15],[30,8,30,10],[30,12,30,15],[31,8,31,10],[31,12,31,15],[28,8,28,10],[28,12,28,15],[5,2,5,14],[6,1,6,15],[7,1,7,15],[8,1,8,15],[9,1,9,15],[13,1,13,9],[13,11,13,15],[16,1,16,6],[16,8,16,15],[26,8,26,10],[27,8,27,10],[27,12,27,15]]}
[]
[null,null,null,null,null,null,null,null,null,null,null,null,null,null,null,null,null,null,"FEMALE",1,1,"50m","Freestyle"]
[null,null,null,null,null,null,null,null,null,null,null,null,null,null,null,null,null,null,"MALE",2,2,"100m","Backstroke"]
[null,null,null,null,null,null,null,null,null,null,null,null,null,null,null,null,null,null,null,3,3,"200m","Breaststroke"]
[null,null,null,null,null,null,null,null,null,null,null,null,null,null,null,null,null,null,null,4,4,"400m","Butterfly"]
[null,null,"INDIVIDUAL ENTRY FORM",null,null,null,null,null,null,null,null,null,null,null,null,null,null,null,null,5,5,"800m","Ind Medley"]
[null,"To be received by Barcelona OC no later than Tuesday 31th May 2016",null,null,null,null,null,null,null,null,null,null,null,null,null,null,null,null,null,6,6,"1500m"]
[null,"Please return form by email to natacio@natacio.cat and ciutatdebarcelona@cnsantandreu.com",null,null,null,null,null,null,null,null,null,null,null,null,null,null,null,null,null,7,7,"5K"]
[null,"Please complete form in BLOCK LETTERS in English",null,null,null,null,null,null,null,null,null,null,null,null,null,null,null,null,null,8,8,"10K"]
[null,"REMEMBER, this form must be send with the TEAM SUMMARY FORM",null,null,null,null,null,null,null,null,null,null,null,null,null,null,null,null,null,9,9,"25K"]
[null,null,null,null,null,null,null,null,null,null,null,null,null,null,null,null,null,null,null,10,10]
[null,null,null,null,null,null,null,null,null,null,null,null,null,null,null,null,null,null,null,11,11]
[null,"Federation/ Club:",null,null,null,null,null,null,null,null,null,"Country:",null,null,null,null,null,null,null,12,12]
[null,{"$f":"+'Team Summary Form'!B13","v":0},null,null,null,null,null,null,null,null,null,{"$f":"+'Team Summary Form'!K13","v":""},null,null,null,null,null,null,null,13]
[null,null,null,null,null,null,null,null,null,null,null,null,null,null,null,null,null,null,null,14]
[null,"First Name (as shown on passport):",null,null,null,null,null,null,"Surname (as shown on passport):",null,null,null,null,null,null,null,null,null,null,15,null,null,"hfgf"]
[null,null,null,null,null,null,null,null,null,null,null,null,null,null,null,null,null,null,null,16]
[null," ",null,null,null,null,null,null,null,null,null,null,null,null,null,null,null,null,null,17]
[null,"Gender:",null,null,null,null,null,null,"Date of Birth (Day / Month / Year):",null,null,null,null,null,null,null,null,null,null,18]
[null,null,null,null,null,null,null,null,null,null,null,null,null,null,null,null,null,null,null,19]
[null,null,null,null,null,null,null,null,null,null,null,null,null,null,null,null,null,null,null,20]
[null,null,null,null,null,null,null,null,null,null,null,null,null,null,null,null,null,null,null,21]
[null,"ENTRY INFORMATION",null,null,null,null,null,null,null,null,null,null,null,null,null,null,null,null,null,22]
[null,null,null,null,null,null,null,null,null,null,null,null,null,null,null,null,null,null,null,23]
[null,null,null,null,null,null,null,null,null,null,null,null,null,null,null,null,null,null,null,24]
[null,"Event (please tick √)",null,null,null,null,"Entry Time",null,"Date Recorded",null,null,null,"Event/ Location",null,null,null,null,null,null,25]
[null,null,null,null,null,null,"(mm:ss,cc)",null,"(dd/mm/yyyy)",null,null,null,null,null,null,null,null,null,null,26]
[null,"50m",null,"Freestyle",null,null,null,null,null,null,null,null,null,null,null,null,null,null,null,27]
[null,"100m",null,"Freestyle",null,null,null,null,null,null,null,null,null,null,null,null,null,null,null,28]
[null,"200m",null,"Freestyle",null,null,null,null,null,null,null,null,null,null,null,null,null,null,null,29]
[null,"400m",null,"Freestyle",null,null,null,null,null,null,null,null,null,null,null,null,null,null,null,30]
[null,"800m",null,"Freestyle",null,null,null,null,null,null,null,null,null,null,null,null,null,null,null,31]
[null,"1500m",null,"Freestyle"]
[null,"50m",null,"Backstroke"]
[null,"100m",null,"Backstroke"]
[null,"200m",null,"Backstroke"]
[null,"50m",null,"Breaststroke"]
[null,"100m",null,"Breaststroke"]
[null,"200m",null,"Breaststroke"]
[null,"50m",null,"Butterfly"]
[null,"100m",null,"Butterfly"]
[null,"200m",null,"Butterfly"]
[null,"200m",null,"Ind Medley"]
[null,"400m",null,"Ind Medley"]
[]
[]
[null,"MEDIA INFORMATION"]
[]
[null,"Best Performances",null,null,null,null,null,null,null,null," ",null,"Event",null,null,"Time"]
[null,"Seson",null,"Championship",null,null,null,null,null,null,"Position",null,"distance","style"," ","(mm:ss,cc)"]

{"sheet":"11","index":12,"n_rows":50,"n_cols":23,"rows_kept":50,"cut":false,"hidden":false,"merged":[[50,3,50,8],[51,3,51,8],[52,3,52,8],[53,3,53,8],[54,3,54,8],[41,8,41,10],[41,12,41,15],[42,8,42,10],[42,12,42,15],[43,8,43,10],[43,12,43,15],[38,8,38,10],[38,12,38,15],[39,8,39,10],[39,12,39,15],[40,8,40,10],[40,12,40,15],[35,8,35,10],[35,12,35,15],[36,8,36,10],[36,12,36,15],[37,8,37,10],[37,12,37,15],[32,8,32,10],[32,12,32,15],[33,8,33,10],[33,12,33,15],[34,8,34,10],[34,12,34,15],[29,8,29,10],[29,12,29,15],[30,8,30,10],[30,12,30,15],[31,8,31,10],[31,12,31,15],[28,8,28,10],[28,12,28,15],[5,2,5,14],[6,1,6,15],[7,1,7,15],[8,1,8,15],[9,1,9,15],[13,1,13,9],[13,11,13,15],[16,1,16,6],[16,8,16,15],[26,8,26,10],[27,8,27,10],[27,12,27,15]]}
[]
[null,null,null,null,null,null,null,null,null,null,null,null,null,null,null,null,null,null,"FEMALE",1,1,"50m","Freestyle"]
[null,null,null,null,null,null,null,null,null,null,null,null,null,null,null,null,null,null,"MALE",2,2,"100m","Backstroke"]
[null,null,null,null,null,null,null,null,null,null,null,null,null,null,null,null,null,null,null,3,3,"200m","Breaststroke"]
[null,null,null,null,null,null,null,null,null,null,null,null,null,null,null,null,null,null,null,4,4,"400m","Butterfly"]
[null,null,"INDIVIDUAL ENTRY FORM",null,null,null,null,null,null,null,null,null,null,null,null,null,null,null,null,5,5,"800m","Ind Medley"]
[null,"To be received by Barcelona OC no later than Tuesday 31th May 2016",null,null,null,null,null,null,null,null,null,null,null,null,null,null,null,null,null,6,6,"1500m"]
[null,"Please return form by email to natacio@natacio.cat and ciutatdebarcelona@cnsantandreu.com",null,null,null,null,null,null,null,null,null,null,null,null,null,null,null,null,null,7,7,"5K"]
[null,"Please complete form in BLOCK LETTERS in English",null,null,null,null,null,null,null,null,null,null,null,null,null,null,null,null,null,8,8,"10K"]
[null,"REMEMBER, this form must be send with the TEAM SUMMARY FORM",null,null,null,null,null,null,null,null,null,null,null,null,null,null,null,null,null,9,9,"25K"]
[null,null,null,null,null,null,null,null,null,null,null,null,null,null,null,null,null,null,null,10,10]
[null,null,null,null,null,null,null,null,null,null,null,null,null,null,null,null,null,null,null,11,11]
[null,"Federation/ Club:",null,null,null,null,null,null,null,null,null,"Country:",null,null,null,null,null,null,null,12,12]
[null,{"$f":"+'Team Summary Form'!B13","v":0},null,null,null,null,null,null,null,null,null,{"$f":"+'Team Summary Form'!K13","v":""},null,null,null,null,null,null,null,13]
[null,null,null,null,null,null,null,null,null,null,null,null,null,null,null,null,null,null,null,14]
[null,"First Name (as shown on passport):",null,null,null,null,null,null,"Surname (as shown on passport):",null,null,null,null,null,null,null,null,null,null,15,null,null,"hfgf"]
[null,null,null,null,null,null,null,null,null,null,null,null,null,null,null,null,null,null,null,16]
[null," ",null,null,null,null,null,null,null,null,null,null,null,null,null,null,null,null,null,17]
[null,"Gender:",null,null,null,null,null,null,"Date of Birth (Day / Month / Year):",null,null,null,null,null,null,null,null,null,null,18]
[null,null,null,null,null,null,null,null,null,null,null,null,null,null,null,null,null,null,null,19]
[null,null,null,null,null,null,null,null,null,null,null,null,null,null,null,null,null,null,null,20]
[null,null,null,null,null,null,null,null,null,null,null,null,null,null,null,null,null,null,null,21]
[null,"ENTRY INFORMATION",null,null,null,null,null,null,null,null,null,null,null,null,null,null,null,null,null,22]
[null,null,null,null,null,null,null,null,null,null,null,null,null,null,null,null,null,null,null,23]
[null,null,null,null,null,null,null,null,null,null,null,null,null,null,null,null,null,null,null,24]
[null,"Event (please tick √)",null,null,null,null,"Entry Time",null,"Date Recorded",null,null,null,"Event/ Location",null,null,null,null,null,null,25]
[null,null,null,null,null,null,"(mm:ss,cc)",null,"(dd/mm/yyyy)",null,null,null,null,null,null,null,null,null,null,26]
[null,"50m",null,"Freestyle",null,null,null,null,null,null,null,null,null,null,null,null,null,null,null,27]
[null,"100m",null,"Freestyle",null,null,null,null,null,null,null,null,null,null,null,null,null,null,null,28]
[null,"200m",null,"Freestyle",null,null,null,null,null,null,null,null,null,null,null,null,null,null,null,29]
[null,"400m",null,"Freestyle",null,null,null,null,null,null,null,null,null,null,null,null,null,null,null,30]
[null,"800m",null,"Freestyle",null,null,null,null,null,null,null,null,null,null,null,null,null,null,null,31]
[null,"1500m",null,"Freestyle"]
[null,"50m",null,"Backstroke"]
[null,"100m",null,"Backstroke"]
[null,"200m",null,"Backstroke"]
[null,"50m",null,"Breaststroke"]
[null,"100m",null,"Breaststroke"]
[null,"200m",null,"Breaststroke"]
[null,"50m",null,"Butterfly"]
[null,"100m",null,"Butterfly"]
[null,"200m",null,"Butterfly"]
[null,"200m",null,"Ind Medley"]
[null,"400m",null,"Ind Medley"]
[]
[]
[null,"MEDIA INFORMATION"]
[]
[null,"Best Performances",null,null,null,null,null,null,null,null," ",null,"Event",null,null,"Time"]
[null,"Seson",null,"Championship",null,null,null,null,null,null,"Position",null,"distance","style"," ","(mm:ss,cc)"]

{"sheet":"12","index":13,"n_rows":50,"n_cols":23,"rows_kept":50,"cut":false,"hidden":false,"merged":[[50,3,50,8],[51,3,51,8],[52,3,52,8],[53,3,53,8],[54,3,54,8],[41,8,41,10],[41,12,41,15],[42,8,42,10],[42,12,42,15],[43,8,43,10],[43,12,43,15],[38,8,38,10],[38,12,38,15],[39,8,39,10],[39,12,39,15],[40,8,40,10],[40,12,40,15],[35,8,35,10],[35,12,35,15],[36,8,36,10],[36,12,36,15],[37,8,37,10],[37,12,37,15],[32,8,32,10],[32,12,32,15],[33,8,33,10],[33,12,33,15],[34,8,34,10],[34,12,34,15],[29,8,29,10],[29,12,29,15],[30,8,30,10],[30,12,30,15],[31,8,31,10],[31,12,31,15],[28,8,28,10],[28,12,28,15],[5,2,5,14],[6,1,6,15],[7,1,7,15],[8,1,8,15],[9,1,9,15],[13,1,13,9],[13,11,13,15],[16,1,16,6],[16,8,16,15],[26,8,26,10],[27,8,27,10],[27,12,27,15]]}
[]
[null,null,null,null,null,null,null,null,null,null,null,null,null,null,null,null,null,null,"FEMALE",1,1,"50m","Freestyle"]
[null,null,null,null,null,null,null,null,null,null,null,null,null,null,null,null,null,null,"MALE",2,2,"100m","Backstroke"]
[null,null,null,null,null,null,null,null,null,null,null,null,null,null,null,null,null,null,null,3,3,"200m","Breaststroke"]
[null,null,null,null,null,null,null,null,null,null,null,null,null,null,null,null,null,null,null,4,4,"400m","Butterfly"]
[null,null,"INDIVIDUAL ENTRY FORM",null,null,null,null,null,null,null,null,null,null,null,null,null,null,null,null,5,5,"800m","Ind Medley"]
[null,"To be received by Barcelona OC no later than Tuesday 31th May 2016",null,null,null,null,null,null,null,null,null,null,null,null,null,null,null,null,null,6,6,"1500m"]
[null,"Please return form by email to natacio@natacio.cat and ciutatdebarcelona@cnsantandreu.com",null,null,null,null,null,null,null,null,null,null,null,null,null,null,null,null,null,7,7,"5K"]
[null,"Please complete form in BLOCK LETTERS in English",null,null,null,null,null,null,null,null,null,null,null,null,null,null,null,null,null,8,8,"10K"]
[null,"REMEMBER, this form must be send with the TEAM SUMMARY FORM",null,null,null,null,null,null,null,null,null,null,null,null,null,null,null,null,null,9,9,"25K"]
[null,null,null,null,null,null,null,null,null,null,null,null,null,null,null,null,null,null,null,10,10]
[null,null,null,null,null,null,null,null,null,null,null,null,null,null,null,null,null,null,null,11,11]
[null,"Federation/ Club:",null,null,null,null,null,null,null,null,null,"Country:",null,null,null,null,null,null,null,12,12]
[null,{"$f":"+'Team Summary Form'!B13","v":0},null,null,null,null,null,null,null,null,null,{"$f":"+'Team Summary Form'!K13","v":""},null,null,null,null,null,null,null,13]
[null,null,null,null,null,null,null,null,null,null,null,null,null,null,null,null,null,null,null,14]
[null,"First Name (as shown on passport):",null,null,null,null,null,null,"Surname (as shown on passport):",null,null,null,null,null,null,null,null,null,null,15,null,null,"hfgf"]
[null,null,null,null,null,null,null,null,null,null,null,null,null,null,null,null,null,null,null,16]
[null," ",null,null,null,null,null,null,null,null,null,null,null,null,null,null,null,null,null,17]
[null,"Gender:",null,null,null,null,null,null,"Date of Birth (Day / Month / Year):",null,null,null,null,null,null,null,null,null,null,18]
[null,null,null,null,null,null,null,null,null,null,null,null,null,null,null,null,null,null,null,19]
[null,null,null,null,null,null,null,null,null,null,null,null,null,null,null,null,null,null,null,20]
[null,null,null,null,null,null,null,null,null,null,null,null,null,null,null,null,null,null,null,21]
[null,"ENTRY INFORMATION",null,null,null,null,null,null,null,null,null,null,null,null,null,null,null,null,null,22]
[null,null,null,null,null,null,null,null,null,null,null,null,null,null,null,null,null,null,null,23]
[null,null,null,null,null,null,null,null,null,null,null,null,null,null,null,null,null,null,null,24]
[null,"Event (please tick √)",null,null,null,null,"Entry Time",null,"Date Recorded",null,null,null,"Event/ Location",null,null,null,null,null,null,25]
[null,null,null,null,null,null,"(mm:ss,cc)",null,"(dd/mm/yyyy)",null,null,null,null,null,null,null,null,null,null,26]
[null,"50m",null,"Freestyle",null,null,null,null,null,null,null,null,null,null,null,null,null,null,null,27]
[null,"100m",null,"Freestyle",null,null,null,null,null,null,null,null,null,null,null,null,null,null,null,28]
[null,"200m",null,"Freestyle",null,null,null,null,null,null,null,null,null,null,null,null,null,null,null,29]
[null,"400m",null,"Freestyle",null,null,null,null,null,null,null,null,null,null,null,null,null,null,null,30]
[null,"800m",null,"Freestyle",null,null,null,null,null,null,null,null,null,null,null,null,null,null,null,31]
[null,"1500m",null,"Freestyle"]
[null,"50m",null,"Backstroke"]
[null,"100m",null,"Backstroke"]
[null,"200m",null,"Backstroke"]
[null,"50m",null,"Breaststroke"]
[null,"100m",null,"Breaststroke"]
[null,"200m",null,"Breaststroke"]
[null,"50m",null,"Butterfly"]
[null,"100m",null,"Butterfly"]
[null,"200m",null,"Butterfly"]
[null,"200m",null,"Ind Medley"]
[null,"400m",null,"Ind Medley"]
[]
[]
[null,"MEDIA INFORMATION"]
[]
[null,"Best Performances",null,null,null,null,null,null,null,null," ",null,"Event",null,null,"Time"]
[null,"Seson",null,"Championship",null,null,null,null,null,null,"Position",null,"distance","style"," ","(mm:ss,cc)"]

{"sheet":"13","index":14,"n_rows":50,"n_cols":23,"rows_kept":50,"cut":false,"hidden":false,"merged":[[50,3,50,8],[51,3,51,8],[52,3,52,8],[53,3,53,8],[54,3,54,8],[41,8,41,10],[41,12,41,15],[42,8,42,10],[42,12,42,15],[43,8,43,10],[43,12,43,15],[38,8,38,10],[38,12,38,15],[39,8,39,10],[39,12,39,15],[40,8,40,10],[40,12,40,15],[35,8,35,10],[35,12,35,15],[36,8,36,10],[36,12,36,15],[37,8,37,10],[37,12,37,15],[32,8,32,10],[32,12,32,15],[33,8,33,10],[33,12,33,15],[34,8,34,10],[34,12,34,15],[29,8,29,10],[29,12,29,15],[30,8,30,10],[30,12,30,15],[31,8,31,10],[31,12,31,15],[28,8,28,10],[28,12,28,15],[5,2,5,14],[6,1,6,15],[7,1,7,15],[8,1,8,15],[9,1,9,15],[13,1,13,9],[13,11,13,15],[16,1,16,6],[16,8,16,15],[26,8,26,10],[27,8,27,10],[27,12,27,15]]}
[]
[null,null,null,null,null,null,null,null,null,null,null,null,null,null,null,null,null,null,"FEMALE",1,1,"50m","Freestyle"]
[null,null,null,null,null,null,null,null,null,null,null,null,null,null,null,null,null,null,"MALE",2,2,"100m","Backstroke"]
[null,null,null,null,null,null,null,null,null,null,null,null,null,null,null,null,null,null,null,3,3,"200m","Breaststroke"]
[null,null,null,null,null,null,null,null,null,null,null,null,null,null,null,null,null,null,null,4,4,"400m","Butterfly"]
[null,null,"INDIVIDUAL ENTRY FORM",null,null,null,null,null,null,null,null,null,null,null,null,null,null,null,null,5,5,"800m","Ind Medley"]
[null,"To be received by Barcelona OC no later than Tuesday 31th May 2016",null,null,null,null,null,null,null,null,null,null,null,null,null,null,null,null,null,6,6,"1500m"]
[null,"Please return form by email to natacio@natacio.cat and ciutatdebarcelona@cnsantandreu.com",null,null,null,null,null,null,null,null,null,null,null,null,null,null,null,null,null,7,7,"5K"]
[null,"Please complete form in BLOCK LETTERS in English",null,null,null,null,null,null,null,null,null,null,null,null,null,null,null,null,null,8,8,"10K"]
[null,"REMEMBER, this form must be send with the TEAM SUMMARY FORM",null,null,null,null,null,null,null,null,null,null,null,null,null,null,null,null,null,9,9,"25K"]
[null,null,null,null,null,null,null,null,null,null,null,null,null,null,null,null,null,null,null,10,10]
[null,null,null,null,null,null,null,null,null,null,null,null,null,null,null,null,null,null,null,11,11]
[null,"Federation/ Club:",null,null,null,null,null,null,null,null,null,"Country:",null,null,null,null,null,null,null,12,12]
[null,{"$f":"+'Team Summary Form'!B13","v":0},null,null,null,null,null,null,null,null,null,{"$f":"+'Team Summary Form'!K13","v":""},null,null,null,null,null,null,null,13]
[null,null,null,null,null,null,null,null,null,null,null,null,null,null,null,null,null,null,null,14]
[null,"First Name (as shown on passport):",null,null,null,null,null,null,"Surname (as shown on passport):",null,null,null,null,null,null,null,null,null,null,15,null,null,"hfgf"]
[null,null,null,null,null,null,null,null,null,null,null,null,null,null,null,null,null,null,null,16]
[null," ",null,null,null,null,null,null,null,null,null,null,null,null,null,null,null,null,null,17]
[null,"Gender:",null,null,null,null,null,null,"Date of Birth (Day / Month / Year):",null,null,null,null,null,null,null,null,null,null,18]
[null,null,null,null,null,null,null,null,null,null,null,null,null,null,null,null,null,null,null,19]
[null,null,null,null,null,null,null,null,null,null,null,null,null,null,null,null,null,null,null,20]
[null,null,null,null,null,null,null,null,null,null,null,null,null,null,null,null,null,null,null,21]
[null,"ENTRY INFORMATION",null,null,null,null,null,null,null,null,null,null,null,null,null,null,null,null,null,22]
[null,null,null,null,null,null,null,null,null,null,null,null,null,null,null,null,null,null,null,23]
[null,null,null,null,null,null,null,null,null,null,null,null,null,null,null,null,null,null,null,24]
[null,"Event (please tick √)",null,null,null,null,"Entry Time",null,"Date Recorded",null,null,null,"Event/ Location",null,null,null,null,null,null,25]
[null,null,null,null,null,null,"(mm:ss,cc)",null,"(dd/mm/yyyy)",null,null,null,null,null,null,null,null,null,null,26]
[null,"50m",null,"Freestyle",null,null,null,null,null,null,null,null,null,null,null,null,null,null,null,27]
[null,"100m",null,"Freestyle",null,null,null,null,null,null,null,null,null,null,null,null,null,null,null,28]
[null,"200m",null,"Freestyle",null,null,null,null,null,null,null,null,null,null,null,null,null,null,null,29]
[null,"400m",null,"Freestyle",null,null,null,null,null,null,null,null,null,null,null,null,null,null,null,30]
[null,"800m",null,"Freestyle",null,null,null,null,null,null,null,null,null,null,null,null,null,null,null,31]
[null,"1500m",null,"Freestyle"]
[null,"50m",null,"Backstroke"]
[null,"100m",null,"Backstroke"]
[null,"200m",null,"Backstroke"]
[null,"50m",null,"Breaststroke"]
[null,"100m",null,"Breaststroke"]
[null,"200m",null,"Breaststroke"]
[null,"50m",null,"Butterfly"]
[null,"100m",null,"Butterfly"]
[null,"200m",null,"Butterfly"]
[null,"200m",null,"Ind Medley"]
[null,"400m",null,"Ind Medley"]
[]
[]
[null,"MEDIA INFORMATION"]
[]
[null,"Best Performances",null,null,null,null,null,null,null,null," ",null,"Event",null,null,"Time"]
[null,"Seson",null,"Championship",null,null,null,null,null,null,"Position",null,"distance","style"," ","(mm:ss,cc)"]

{"sheet":"14","index":15,"n_rows":50,"n_cols":23,"rows_kept":50,"cut":false,"hidden":false,"merged":[[50,3,50,8],[51,3,51,8],[52,3,52,8],[53,3,53,8],[54,3,54,8],[41,8,41,10],[41,12,41,15],[42,8,42,10],[42,12,42,15],[43,8,43,10],[43,12,43,15],[38,8,38,10],[38,12,38,15],[39,8,39,10],[39,12,39,15],[40,8,40,10],[40,12,40,15],[35,8,35,10],[35,12,35,15],[36,8,36,10],[36,12,36,15],[37,8,37,10],[37,12,37,15],[32,8,32,10],[32,12,32,15],[33,8,33,10],[33,12,33,15],[34,8,34,10],[34,12,34,15],[29,8,29,10],[29,12,29,15],[30,8,30,10],[30,12,30,15],[31,8,31,10],[31,12,31,15],[28,8,28,10],[28,12,28,15],[5,2,5,14],[6,1,6,15],[7,1,7,15],[8,1,8,15],[9,1,9,15],[13,1,13,9],[13,11,13,15],[16,1,16,6],[16,8,16,15],[26,8,26,10],[27,8,27,10],[27,12,27,15]]}
[]
[null,null,null,null,null,null,null,null,null,null,null,null,null,null,null,null,null,null,"FEMALE",1,1,"50m","Freestyle"]
[null,null,null,null,null,null,null,null,null,null,null,null,null,null,null,null,null,null,"MALE",2,2,"100m","Backstroke"]
[null,null,null,null,null,null,null,null,null,null,null,null,null,null,null,null,null,null,null,3,3,"200m","Breaststroke"]
[null,null,null,null,null,null,null,null,null,null,null,null,null,null,null,null,null,null,null,4,4,"400m","Butterfly"]
[null,null,"INDIVIDUAL ENTRY FORM",null,null,null,null,null,null,null,null,null,null,null,null,null,null,null,null,5,5,"800m","Ind Medley"]
[null,"To be received by Barcelona OC no later than Tuesday 31th May 2016",null,null,null,null,null,null,null,null,null,null,null,null,null,null,null,null,null,6,6,"1500m"]
[null,"Please return form by email to natacio@natacio.cat and ciutatdebarcelona@cnsantandreu.com",null,null,null,null,null,null,null,null,null,null,null,null,null,null,null,null,null,7,7,"5K"]
[null,"Please complete form in BLOCK LETTERS in English",null,null,null,null,null,null,null,null,null,null,null,null,null,null,null,null,null,8,8,"10K"]
[null,"REMEMBER, this form must be send with the TEAM SUMMARY FORM",null,null,null,null,null,null,null,null,null,null,null,null,null,null,null,null,null,9,9,"25K"]
[null,null,null,null,null,null,null,null,null,null,null,null,null,null,null,null,null,null,null,10,10]
[null,null,null,null,null,null,null,null,null,null,null,null,null,null,null,null,null,null,null,11,11]
[null,"Federation/ Club:",null,null,null,null,null,null,null,null,null,"Country:",null,null,null,null,null,null,null,12,12]
[null,{"$f":"+'Team Summary Form'!B13","v":0},null,null,null,null,null,null,null,null,null,{"$f":"+'Team Summary Form'!K13","v":""},null,null,null,null,null,null,null,13]
[null,null,null,null,null,null,null,null,null,null,null,null,null,null,null,null,null,null,null,14]
[null,"First Name (as shown on passport):",null,null,null,null,null,null,"Surname (as shown on passport):",null,null,null,null,null,null,null,null,null,null,15,null,null,"hfgf"]
[null,null,null,null,null,null,null,null,null,null,null,null,null,null,null,null,null,null,null,16]
[null," ",null,null,null,null,null,null,null,null,null,null,null,null,null,null,null,null,null,17]
[null,"Gender:",null,null,null,null,null,null,"Date of Birth (Day / Month / Year):",null,null,null,null,null,null,null,null,null,null,18]
[null,null,null,null,null,null,null,null,null,null,null,null,null,null,null,null,null,null,null,19]
[null,null,null,null,null,null,null,null,null,null,null,null,null,null,null,null,null,null,null,20]
[null,null,null,null,null,null,null,null,null,null,null,null,null,null,null,null,null,null,null,21]
[null,"ENTRY INFORMATION",null,null,null,null,null,null,null,null,null,null,null,null,null,null,null,null,null,22]
[null,null,null,null,null,null,null,null,null,null,null,null,null,null,null,null,null,null,null,23]
[null,null,null,null,null,null,null,null,null,null,null,null,null,null,null,null,null,null,null,24]
[null,"Event (please tick √)",null,null,null,null,"Entry Time",null,"Date Recorded",null,null,null,"Event/ Location",null,null,null,null,null,null,25]
[null,null,null,null,null,null,"(mm:ss,cc)",null,"(dd/mm/yyyy)",null,null,null,null,null,null,null,null,null,null,26]
[null,"50m",null,"Freestyle",null,null,null,null,null,null,null,null,null,null,null,null,null,null,null,27]
[null,"100m",null,"Freestyle",null,null,null,null,null,null,null,null,null,null,null,null,null,null,null,28]
[null,"200m",null,"Freestyle",null,null,null,null,null,null,null,null,null,null,null,null,null,null,null,29]
[null,"400m",null,"Freestyle",null,null,null,null,null,null,null,null,null,null,null,null,null,null,null,30]
[null,"800m",null,"Freestyle",null,null,null,null,null,null,null,null,null,null,null,null,null,null,null,31]
[null,"1500m",null,"Freestyle"]
[null,"50m",null,"Backstroke"]
[null,"100m",null,"Backstroke"]
[null,"200m",null,"Backstroke"]
[null,"50m",null,"Breaststroke"]
[null,"100m",null,"Breaststroke"]
[null,"200m",null,"Breaststroke"]
[null,"50m",null,"Butterfly"]
[null,"100m",null,"Butterfly"]
[null,"200m",null,"Butterfly"]
[null,"200m",null,"Ind Medley"]
[null,"400m",null,"Ind Medley"]
[]
[]
[null,"MEDIA INFORMATION"]
[]
[null,"Best Performances",null,null,null,null,null,null,null,null," ",null,"Event",null,null,"Time"]
[null,"Seson",null,"Championship",null,null,null,null,null,null,"Position",null,"distance","style"," ","(mm:ss,cc)"]

{"sheet":"15","index":16,"n_rows":50,"n_cols":23,"rows_kept":50,"cut":false,"hidden":false,"merged":[[50,3,50,8],[51,3,51,8],[52,3,52,8],[53,3,53,8],[54,3,54,8],[41,8,41,10],[41,12,41,15],[42,8,42,10],[42,12,42,15],[43,8,43,10],[43,12,43,15],[38,8,38,10],[38,12,38,15],[39,8,39,10],[39,12,39,15],[40,8,40,10],[40,12,40,15],[35,8,35,10],[35,12,35,15],[36,8,36,10],[36,12,36,15],[37,8,37,10],[37,12,37,15],[32,8,32,10],[32,12,32,15],[33,8,33,10],[33,12,33,15],[34,8,34,10],[34,12,34,15],[29,8,29,10],[29,12,29,15],[30,8,30,10],[30,12,30,15],[31,8,31,10],[31,12,31,15],[28,8,28,10],[28,12,28,15],[5,2,5,14],[6,1,6,15],[7,1,7,15],[8,1,8,15],[9,1,9,15],[13,1,13,9],[13,11,13,15],[16,1,16,6],[16,8,16,15],[26,8,26,10],[27,8,27,10],[27,12,27,15]]}
[]
[null,null,null,null,null,null,null,null,null,null,null,null,null,null,null,null,null,null,"FEMALE",1,1,"50m","Freestyle"]
[null,null,null,null,null,null,null,null,null,null,null,null,null,null,null,null,null,null,"MALE",2,2,"100m","Backstroke"]
[null,null,null,null,null,null,null,null,null,null,null,null,null,null,null,null,null,null,null,3,3,"200m","Breaststroke"]
[null,null,null,null,null,null,null,null,null,null,null,null,null,null,null,null,null,null,null,4,4,"400m","Butterfly"]
[null,null,"INDIVIDUAL ENTRY FORM",null,null,null,null,null,null,null,null,null,null,null,null,null,null,null,null,5,5,"800m","Ind Medley"]
[null,"To be received by Barcelona OC no later than Tuesday 31th May 2016",null,null,null,null,null,null,null,null,null,null,null,null,null,null,null,null,null,6,6,"1500m"]
[null,"Please return form by email to natacio@natacio.cat and ciutatdebarcelona@cnsantandreu.com",null,null,null,null,null,null,null,null,null,null,null,null,null,null,null,null,null,7,7,"5K"]
[null,"Please complete form in BLOCK LETTERS in English",null,null,null,null,null,null,null,null,null,null,null,null,null,null,null,null,null,8,8,"10K"]
[null,"REMEMBER, this form must be send with the TEAM SUMMARY FORM",null,null,null,null,null,null,null,null,null,null,null,null,null,null,null,null,null,9,9,"25K"]
[null,null,null,null,null,null,null,null,null,null,null,null,null,null,null,null,null,null,null,10,10]
[null,null,null,null,null,null,null,null,null,null,null,null,null,null,null,null,null,null,null,11,11]
[null,"Federation/ Club:",null,null,null,null,null,null,null,null,null,"Country:",null,null,null,null,null,null,null,12,12]
[null,{"$f":"+'Team Summary Form'!B13","v":0},null,null,null,null,null,null,null,null,null,{"$f":"+'Team Summary Form'!K13","v":""},null,null,null,null,null,null,null,13]
[null,null,null,null,null,null,null,null,null,null,null,null,null,null,null,null,null,null,null,14]
[null,"First Name (as shown on passport):",null,null,null,null,null,null,"Surname (as shown on passport):",null,null,null,null,null,null,null,null,null,null,15,null,null,"hfgf"]
[null,null,null,null,null,null,null,null,null,null,null,null,null,null,null,null,null,null,null,16]
[null," ",null,null,null,null,null,null,null,null,null,null,null,null,null,null,null,null,null,17]
[null,"Gender:",null,null,null,null,null,null,"Date of Birth (Day / Month / Year):",null,null,null,null,null,null,null,null,null,null,18]
[null,null,null,null,null,null,null,null,null,null,null,null,null,null,null,null,null,null,null,19]
[null,null,null,null,null,null,null,null,null,null,null,null,null,null,null,null,null,null,null,20]
[null,null,null,null,null,null,null,null,null,null,null,null,null,null,null,null,null,null,null,21]
[null,"ENTRY INFORMATION",null,null,null,null,null,null,null,null,null,null,null,null,null,null,null,null,null,22]
[null,null,null,null,null,null,null,null,null,null,null,null,null,null,null,null,null,null,null,23]
[null,null,null,null,null,null,null,null,null,null,null,null,null,null,null,null,null,null,null,24]
[null,"Event (please tick √)",null,null,null,null,"Entry Time",null,"Date Recorded",null,null,null,"Event/ Location",null,null,null,null,null,null,25]
[null,null,null,null,null,null,"(mm:ss,cc)",null,"(dd/mm/yyyy)",null,null,null,null,null,null,null,null,null,null,26]
[null,"50m",null,"Freestyle",null,null,null,null,null,null,null,null,null,null,null,null,null,null,null,27]
[null,"100m",null,"Freestyle",null,null,null,null,null,null,null,null,null,null,null,null,null,null,null,28]
[null,"200m",null,"Freestyle",null,null,null,null,null,null,null,null,null,null,null,null,null,null,null,29]
[null,"400m",null,"Freestyle",null,null,null,null,null,null,null,null,null,null,null,null,null,null,null,30]
[null,"800m",null,"Freestyle",null,null,null,null,null,null,null,null,null,null,null,null,null,null,null,31]
[null,"1500m",null,"Freestyle"]
[null,"50m",null,"Backstroke"]
[null,"100m",null,"Backstroke"]
[null,"200m",null,"Backstroke"]
[null,"50m",null,"Breaststroke"]
[null,"100m",null,"Breaststroke"]
[null,"200m",null,"Breaststroke"]
[null,"50m",null,"Butterfly"]
[null,"100m",null,"Butterfly"]
[null,"200m",null,"Butterfly"]
[null,"200m",null,"Ind Medley"]
[null,"400m",null,"Ind Medley"]
[]
[]
[null,"MEDIA INFORMATION"]
[]
[null,"Best Performances",null,null,null,null,null,null,null,null," ",null,"Event",null,null,"Time"]
[null,"Seson",null,"Championship",null,null,null,null,null,null,"Position",null,"distance","style"," ","(mm:ss,cc)"]

{"sheet":"16","index":17,"n_rows":50,"n_cols":23,"rows_kept":50,"cut":false,"hidden":false,"merged":[[50,3,50,8],[51,3,51,8],[52,3,52,8],[53,3,53,8],[54,3,54,8],[41,8,41,10],[41,12,41,15],[42,8,42,10],[42,12,42,15],[43,8,43,10],[43,12,43,15],[38,8,38,10],[38,12,38,15],[39,8,39,10],[39,12,39,15],[40,8,40,10],[40,12,40,15],[35,8,35,10],[35,12,35,15],[36,8,36,10],[36,12,36,15],[37,8,37,10],[37,12,37,15],[32,8,32,10],[32,12,32,15],[33,8,33,10],[33,12,33,15],[34,8,34,10],[34,12,34,15],[29,8,29,10],[29,12,29,15],[30,8,30,10],[30,12,30,15],[31,8,31,10],[31,12,31,15],[28,8,28,10],[28,12,28,15],[5,2,5,14],[6,1,6,15],[7,1,7,15],[8,1,8,15],[9,1,9,15],[13,1,13,9],[13,11,13,15],[16,1,16,6],[16,8,16,15],[26,8,26,10],[27,8,27,10],[27,12,27,15]]}
[]
[null,null,null,null,null,null,null,null,null,null,null,null,null,null,null,null,null,null,"FEMALE",1,1,"50m","Freestyle"]
[null,null,null,null,null,null,null,null,null,null,null,null,null,null,null,null,null,null,"MALE",2,2,"100m","Backstroke"]
[null,null,null,null,null,null,null,null,null,null,null,null,null,null,null,null,null,null,null,3,3,"200m","Breaststroke"]
[null,null,null,null,null,null,null,null,null,null,null,null,null,null,null,null,null,null,null,4,4,"400m","Butterfly"]
[null,null,"INDIVIDUAL ENTRY FORM",null,null,null,null,null,null,null,null,null,null,null,null,null,null,null,null,5,5,"800m","Ind Medley"]
[null,"To be received by Barcelona OC no later than Tuesday 31th May 2016",null,null,null,null,null,null,null,null,null,null,null,null,null,null,null,null,null,6,6,"1500m"]
[null,"Please return form by email to natacio@natacio.cat and ciutatdebarcelona@cnsantandreu.com",null,null,null,null,null,null,null,null,null,null,null,null,null,null,null,null,null,7,7,"5K"]
[null,"Please complete form in BLOCK LETTERS in English",null,null,null,null,null,null,null,null,null,null,null,null,null,null,null,null,null,8,8,"10K"]
[null,"REMEMBER, this form must be send with the TEAM SUMMARY FORM",null,null,null,null,null,null,null,null,null,null,null,null,null,null,null,null,null,9,9,"25K"]
[null,null,null,null,null,null,null,null,null,null,null,null,null,null,null,null,null,null,null,10,10]
[null,null,null,null,null,null,null,null,null,null,null,null,null,null,null,null,null,null,null,11,11]
[null,"Federation/ Club:",null,null,null,null,null,null,null,null,null,"Country:",null,null,null,null,null,null,null,12,12]
[null,{"$f":"+'Team Summary Form'!B13","v":0},null,null,null,null,null,null,null,null,null,{"$f":"+'Team Summary Form'!K13","v":""},null,null,null,null,null,null,null,13]
[null,null,null,null,null,null,null,null,null,null,null,null,null,null,null,null,null,null,null,14]
[null,"First Name (as shown on passport):",null,null,null,null,null,null,"Surname (as shown on passport):",null,null,null,null,null,null,null,null,null,null,15,null,null,"hfgf"]
[null,null,null,null,null,null,null,null,null,null,null,null,null,null,null,null,null,null,null,16]
[null," ",null,null,null,null,null,null,null,null,null,null,null,null,null,null,null,null,null,17]
[null,"Gender:",null,null,null,null,null,null,"Date of Birth (Day / Month / Year):",null,null,null,null,null,null,null,null,null,null,18]
[null,null,null,null,null,null,null,null,null,null,null,null,null,null,null,null,null,null,null,19]
[null,null,null,null,null,null,null,null,null,null,null,null,null,null,null,null,null,null,null,20]
[null,null,null,null,null,null,null,null,null,null,null,null,null,null,null,null,null,null,null,21]
[null,"ENTRY INFORMATION",null,null,null,null,null,null,null,null,null,null,null,null,null,null,null,null,null,22]
[null,null,null,null,null,null,null,null,null,null,null,null,null,null,null,null,null,null,null,23]
[null,null,null,null,null,null,null,null,null,null,null,null,null,null,null,null,null,null,null,24]
[null,"Event (please tick √)",null,null,null,null,"Entry Time",null,"Date Recorded",null,null,null,"Event/ Location",null,null,null,null,null,null,25]
[null,null,null,null,null,null,"(mm:ss,cc)",null,"(dd/mm/yyyy)",null,null,null,null,null,null,null,null,null,null,26]
[null,"50m",null,"Freestyle",null,null,null,null,null,null,null,null,null,null,null,null,null,null,null,27]
[null,"100m",null,"Freestyle",null,null,null,null,null,null,null,null,null,null,null,null,null,null,null,28]
[null,"200m",null,"Freestyle",null,null,null,null,null,null,null,null,null,null,null,null,null,null,null,29]
[null,"400m",null,"Freestyle",null,null,null,null,null,null,null,null,null,null,null,null,null,null,null,30]
[null,"800m",null,"Freestyle",null,null,null,null,null,null,null,null,null,null,null,null,null,null,null,31]
[null,"1500m",null,"Freestyle"]
[null,"50m",null,"Backstroke"]
[null,"100m",null,"Backstroke"]
[null,"200m",null,"Backstroke"]
[null,"50m",null,"Breaststroke"]
[null,"100m",null,"Breaststroke"]
[null,"200m",null,"Breaststroke"]
[null,"50m",null,"Butterfly"]
[null,"100m",null,"Butterfly"]
[null,"200m",null,"Butterfly"]
[null,"200m",null,"Ind Medley"]
[null,"400m",null,"Ind Medley"]
[]
[]
[null,"MEDIA INFORMATION"]
[]
[null,"Best Performances",null,null,null,null,null,null,null,null," ",null,"Event",null,null,"Time"]
[null,"Seson",null,"Championship",null,null,null,null,null,null,"Position",null,"distance","style"," ","(mm:ss,cc)"]

{"sheet":"17","index":18,"n_rows":50,"n_cols":23,"rows_kept":50,"cut":false,"hidden":false,"merged":[[50,3,50,8],[51,3,51,8],[52,3,52,8],[53,3,53,8],[54,3,54,8],[41,8,41,10],[41,12,41,15],[42,8,42,10],[42,12,42,15],[43,8,43,10],[43,12,43,15],[38,8,38,10],[38,12,38,15],[39,8,39,10],[39,12,39,15],[40,8,40,10],[40,12,40,15],[35,8,35,10],[35,12,35,15],[36,8,36,10],[36,12,36,15],[37,8,37,10],[37,12,37,15],[32,8,32,10],[32,12,32,15],[33,8,33,10],[33,12,33,15],[34,8,34,10],[34,12,34,15],[29,8,29,10],[29,12,29,15],[30,8,30,10],[30,12,30,15],[31,8,31,10],[31,12,31,15],[28,8,28,10],[28,12,28,15],[5,2,5,14],[6,1,6,15],[7,1,7,15],[8,1,8,15],[9,1,9,15],[13,1,13,9],[13,11,13,15],[16,1,16,6],[16,8,16,15],[26,8,26,10],[27,8,27,10],[27,12,27,15]]}
[]
[null,null,null,null,null,null,null,null,null,null,null,null,null,null,null,null,null,null,"FEMALE",1,1,"50m","Freestyle"]
[null,null,null,null,null,null,null,null,null,null,null,null,null,null,null,null,null,null,"MALE",2,2,"100m","Backstroke"]
[null,null,null,null,null,null,null,null,null,null,null,null,null,null,null,null,null,null,null,3,3,"200m","Breaststroke"]
[null,null,null,null,null,null,null,null,null,null,null,null,null,null,null,null,null,null,null,4,4,"400m","Butterfly"]
[null,null,"INDIVIDUAL ENTRY FORM",null,null,null,null,null,null,null,null,null,null,null,null,null,null,null,null,5,5,"800m","Ind Medley"]
[null,"To be received by Barcelona OC no later than Tuesday 31th May 2016",null,null,null,null,null,null,null,null,null,null,null,null,null,null,null,null,null,6,6,"1500m"]
[null,"Please return form by email to natacio@natacio.cat and ciutatdebarcelona@cnsantandreu.com",null,null,null,null,null,null,null,null,null,null,null,null,null,null,null,null,null,7,7,"5K"]
[null,"Please complete form in BLOCK LETTERS in English",null,null,null,null,null,null,null,null,null,null,null,null,null,null,null,null,null,8,8,"10K"]
[null,"REMEMBER, this form must be send with the TEAM SUMMARY FORM",null,null,null,null,null,null,null,null,null,null,null,null,null,null,null,null,null,9,9,"25K"]
[null,null,null,null,null,null,null,null,null,null,null,null,null,null,null,null,null,null,null,10,10]
[null,null,null,null,null,null,null,null,null,null,null,null,null,null,null,null,null,null,null,11,11]
[null,"Federation/ Club:",null,null,null,null,null,null,null,null,null,"Country:",null,null,null,null,null,null,null,12,12]
[null,{"$f":"+'Team Summary Form'!B13","v":0},null,null,null,null,null,null,null,null,null,{"$f":"+'Team Summary Form'!K13","v":""},null,null,null,null,null,null,null,13]
[null,null,null,null,null,null,null,null,null,null,null,null,null,null,null,null,null,null,null,14]
[null,"First Name (as shown on passport):",null,null,null,null,null,null,"Surname (as shown on passport):",null,null,null,null,null,null,null,null,null,null,15,null,null,"hfgf"]
[null,null,null,null,null,null,null,null,null,null,null,null,null,null,null,null,null,null,null,16]
[null," ",null,null,null,null,null,null,null,null,null,null,null,null,null,null,null,null,null,17]
[null,"Gender:",null,null,null,null,null,null,"Date of Birth (Day / Month / Year):",null,null,null,null,null,null,null,null,null,null,18]
[null,null,null,null,null,null,null,null,null,null,null,null,null,null,null,null,null,null,null,19]
[null,null,null,null,null,null,null,null,null,null,null,null,null,null,null,null,null,null,null,20]
[null,null,null,null,null,null,null,null,null,null,null,null,null,null,null,null,null,null,null,21]
[null,"ENTRY INFORMATION",null,null,null,null,null,null,null,null,null,null,null,null,null,null,null,null,null,22]
[null,null,null,null,null,null,null,null,null,null,null,null,null,null,null,null,null,null,null,23]
[null,null,null,null,null,null,null,null,null,null,null,null,null,null,null,null,null,null,null,24]
[null,"Event (please tick √)",null,null,null,null,"Entry Time",null,"Date Recorded",null,null,null,"Event/ Location",null,null,null,null,null,null,25]
[null,null,null,null,null,null,"(mm:ss,cc)",null,"(dd/mm/yyyy)",null,null,null,null,null,null,null,null,null,null,26]
[null,"50m",null,"Freestyle",null,null,null,null,null,null,null,null,null,null,null,null,null,null,null,27]
[null,"100m",null,"Freestyle",null,null,null,null,null,null,null,null,null,null,null,null,null,null,null,28]
[null,"200m",null,"Freestyle",null,null,null,null,null,null,null,null,null,null,null,null,null,null,null,29]
[null,"400m",null,"Freestyle",null,null,null,null,null,null,null,null,null,null,null,null,null,null,null,30]
[null,"800m",null,"Freestyle",null,null,null,null,null,null,null,null,null,null,null,null,null,null,null,31]
[null,"1500m",null,"Freestyle"]
[null,"50m",null,"Backstroke"]
[null,"100m",null,"Backstroke"]
[null,"200m",null,"Backstroke"]
[null,"50m",null,"Breaststroke"]
[null,"100m",null,"Breaststroke"]
[null,"200m",null,"Breaststroke"]
[null,"50m",null,"Butterfly"]
[null,"100m",null,"Butterfly"]
[null,"200m",null,"Butterfly"]
[null,"200m",null,"Ind Medley"]
[null,"400m",null,"Ind Medley"]
[]
[]
[null,"MEDIA INFORMATION"]
[]
[null,"Best Performances",null,null,null,null,null,null,null,null," ",null,"Event",null,null,"Time"]
[null,"Seson",null,"Championship",null,null,null,null,null,null,"Position",null,"distance","style"," ","(mm:ss,cc)"]

{"sheet":"18","index":19,"n_rows":50,"n_cols":23,"rows_kept":50,"cut":false,"hidden":false,"merged":[[50,3,50,8],[51,3,51,8],[52,3,52,8],[53,3,53,8],[54,3,54,8],[41,8,41,10],[41,12,41,15],[42,8,42,10],[42,12,42,15],[43,8,43,10],[43,12,43,15],[38,8,38,10],[38,12,38,15],[39,8,39,10],[39,12,39,15],[40,8,40,10],[40,12,40,15],[35,8,35,10],[35,12,35,15],[36,8,36,10],[36,12,36,15],[37,8,37,10],[37,12,37,15],[32,8,32,10],[32,12,32,15],[33,8,33,10],[33,12,33,15],[34,8,34,10],[34,12,34,15],[29,8,29,10],[29,12,29,15],[30,8,30,10],[30,12,30,15],[31,8,31,10],[31,12,31,15],[28,8,28,10],[28,12,28,15],[5,2,5,14],[6,1,6,15],[7,1,7,15],[8,1,8,15],[9,1,9,15],[13,1,13,9],[13,11,13,15],[16,1,16,6],[16,8,16,15],[26,8,26,10],[27,8,27,10],[27,12,27,15]]}
[]
[null,null,null,null,null,null,null,null,null,null,null,null,null,null,null,null,null,null,"FEMALE",1,1,"50m","Freestyle"]
[null,null,null,null,null,null,null,null,null,null,null,null,null,null,null,null,null,null,"MALE",2,2,"100m","Backstroke"]
[null,null,null,null,null,null,null,null,null,null,null,null,null,null,null,null,null,null,null,3,3,"200m","Breaststroke"]
[null,null,null,null,null,null,null,null,null,null,null,null,null,null,null,null,null,null,null,4,4,"400m","Butterfly"]
[null,null,"INDIVIDUAL ENTRY FORM",null,null,null,null,null,null,null,null,null,null,null,null,null,null,null,null,5,5,"800m","Ind Medley"]
[null,"To be received by Barcelona OC no later than Tuesday 31th May 2016",null,null,null,null,null,null,null,null,null,null,null,null,null,null,null,null,null,6,6,"1500m"]
[null,"Please return form by email to natacio@natacio.cat and ciutatdebarcelona@cnsantandreu.com",null,null,null,null,null,null,null,null,null,null,null,null,null,null,null,null,null,7,7,"5K"]
[null,"Please complete form in BLOCK LETTERS in English",null,null,null,null,null,null,null,null,null,null,null,null,null,null,null,null,null,8,8,"10K"]
[null,"REMEMBER, this form must be send with the TEAM SUMMARY FORM",null,null,null,null,null,null,null,null,null,null,null,null,null,null,null,null,null,9,9,"25K"]
[null,null,null,null,null,null,null,null,null,null,null,null,null,null,null,null,null,null,null,10,10]
[null,null,null,null,null,null,null,null,null,null,null,null,null,null,null,null,null,null,null,11,11]
[null,"Federation/ Club:",null,null,null,null,null,null,null,null,null,"Country:",null,null,null,null,null,null,null,12,12]
[null,{"$f":"+'Team Summary Form'!B13","v":0},null,null,null,null,null,null,null,null,null,{"$f":"+'Team Summary Form'!K13","v":""},null,null,null,null,null,null,null,13]
[null,null,null,null,null,null,null,null,null,null,null,null,null,null,null,null,null,null,null,14]
[null,"First Name (as shown on passport):",null,null,null,null,null,null,"Surname (as shown on passport):",null,null,null,null,null,null,null,null,null,null,15,null,null,"hfgf"]
[null,null,null,null,null,null,null,null,null,null,null,null,null,null,null,null,null,null,null,16]
[null," ",null,null,null,null,null,null,null,null,null,null,null,null,null,null,null,null,null,17]
[null,"Gender:",null,null,null,null,null,null,"Date of Birth (Day / Month / Year):",null,null,null,null,null,null,null,null,null,null,18]
[null,null,null,null,null,null,null,null,null,null,null,null,null,null,null,null,null,null,null,19]
[null,null,null,null,null,null,null,null,null,null,null,null,null,null,null,null,null,null,null,20]
[null,null,null,null,null,null,null,null,null,null,null,null,null,null,null,null,null,null,null,21]
[null,"ENTRY INFORMATION",null,null,null,null,null,null,null,null,null,null,null,null,null,null,null,null,null,22]
[null,null,null,null,null,null,null,null,null,null,null,null,null,null,null,null,null,null,null,23]
[null,null,null,null,null,null,null,null,null,null,null,null,null,null,null,null,null,null,null,24]
[null,"Event (please tick √)",null,null,null,null,"Entry Time",null,"Date Recorded",null,null,null,"Event/ Location",null,null,null,null,null,null,25]
[null,null,null,null,null,null,"(mm:ss,cc)",null,"(dd/mm/yyyy)",null,null,null,null,null,null,null,null,null,null,26]
[null,"50m",null,"Freestyle",null,null,null,null,null,null,null,null,null,null,null,null,null,null,null,27]
[null,"100m",null,"Freestyle",null,null,null,null,null,null,null,null,null,null,null,null,null,null,null,28]
[null,"200m",null,"Freestyle",null,null,null,null,null,null,null,null,null,null,null,null,null,null,null,29]
[null,"400m",null,"Freestyle",null,null,null,null,null,null,null,null,null,null,null,null,null,null,null,30]
[null,"800m",null,"Freestyle",null,null,null,null,null,null,null,null,null,null,null,null,null,null,null,31]
[null,"1500m",null,"Freestyle"]
[null,"50m",null,"Backstroke"]
[null,"100m",null,"Backstroke"]
[null,"200m",null,"Backstroke"]
[null,"50m",null,"Breaststroke"]
[null,"100m",null,"Breaststroke"]
[null,"200m",null,"Breaststroke"]
[null,"50m",null,"Butterfly"]
[null,"100m",null,"Butterfly"]
[null,"200m",null,"Butterfly"]
[null,"200m",null,"Ind Medley"]
[null,"400m",null,"Ind Medley"]
[]
[]
[null,"MEDIA INFORMATION"]
[]
[null,"Best Performances",null,null,null,null,null,null,null,null," ",null,"Event",null,null,"Time"]
[null,"Seson",null,"Championship",null,null,null,null,null,null,"Position",null,"distance","style"," ","(mm:ss,cc)"]

{"sheet":"19","index":20,"n_rows":50,"n_cols":23,"rows_kept":50,"cut":false,"hidden":false,"merged":[[50,3,50,8],[51,3,51,8],[52,3,52,8],[53,3,53,8],[54,3,54,8],[41,8,41,10],[41,12,41,15],[42,8,42,10],[42,12,42,15],[43,8,43,10],[43,12,43,15],[38,8,38,10],[38,12,38,15],[39,8,39,10],[39,12,39,15],[40,8,40,10],[40,12,40,15],[35,8,35,10],[35,12,35,15],[36,8,36,10],[36,12,36,15],[37,8,37,10],[37,12,37,15],[32,8,32,10],[32,12,32,15],[33,8,33,10],[33,12,33,15],[34,8,34,10],[34,12,34,15],[29,8,29,10],[29,12,29,15],[30,8,30,10],[30,12,30,15],[31,8,31,10],[31,12,31,15],[28,8,28,10],[28,12,28,15],[5,2,5,14],[6,1,6,15],[7,1,7,15],[8,1,8,15],[9,1,9,15],[13,1,13,9],[13,11,13,15],[16,1,16,6],[16,8,16,15],[26,8,26,10],[27,8,27,10],[27,12,27,15]]}
[]
[null,null,null,null,null,null,null,null,null,null,null,null,null,null,null,null,null,null,"FEMALE",1,1,"50m","Freestyle"]
[null,null,null,null,null,null,null,null,null,null,null,null,null,null,null,null,null,null,"MALE",2,2,"100m","Backstroke"]
[null,null,null,null,null,null,null,null,null,null,null,null,null,null,null,null,null,null,null,3,3,"200m","Breaststroke"]
[null,null,null,null,null,null,null,null,null,null,null,null,null,null,null,null,null,null,null,4,4,"400m","Butterfly"]
[null,null,"INDIVIDUAL ENTRY FORM",null,null,null,null,null,null,null,null,null,null,null,null,null,null,null,null,5,5,"800m","Ind Medley"]
[null,"To be received by Barcelona OC no later than Tuesday 31th May 2016",null,null,null,null,null,null,null,null,null,null,null,null,null,null,null,null,null,6,6,"1500m"]
[null,"Please return form by email to natacio@natacio.cat and ciutatdebarcelona@cnsantandreu.com",null,null,null,null,null,null,null,null,null,null,null,null,null,null,null,null,null,7,7,"5K"]
[null,"Please complete form in BLOCK LETTERS in English",null,null,null,null,null,null,null,null,null,null,null,null,null,null,null,null,null,8,8,"10K"]
[null,"REMEMBER, this form must be send with the TEAM SUMMARY FORM",null,null,null,null,null,null,null,null,null,null,null,null,null,null,null,null,null,9,9,"25K"]
[null,null,null,null,null,null,null,null,null,null,null,null,null,null,null,null,null,null,null,10,10]
[null,null,null,null,null,null,null,null,null,null,null,null,null,null,null,null,null,null,null,11,11]
[null,"Federation/ Club:",null,null,null,null,null,null,null,null,null,"Country:",null,null,null,null,null,null,null,12,12]
[null,{"$f":"+'Team Summary Form'!B13","v":0},null,null,null,null,null,null,null,null,null,{"$f":"+'Team Summary Form'!K13","v":""},null,null,null,null,null,null,null,13]
[null,null,null,null,null,null,null,null,null,null,null,null,null,null,null,null,null,null,null,14]
[null,"First Name (as shown on passport):",null,null,null,null,null,null,"Surname (as shown on passport):",null,null,null,null,null,null,null,null,null,null,15,null,null,"hfgf"]
[null,null,null,null,null,null,null,null,null,null,null,null,null,null,null,null,null,null,null,16]
[null," ",null,null,null,null,null,null,null,null,null,null,null,null,null,null,null,null,null,17]
[null,"Gender:",null,null,null,null,null,null,"Date of Birth (Day / Month / Year):",null,null,null,null,null,null,null,null,null,null,18]
[null,null,null,null,null,null,null,null,null,null,null,null,null,null,null,null,null,null,null,19]
[null,null,null,null,null,null,null,null,null,null,null,null,null,null,null,null,null,null,null,20]
[null,null,null,null,null,null,null,null,null,null,null,null,null,null,null,null,null,null,null,21]
[null,"ENTRY INFORMATION",null,null,null,null,null,null,null,null,null,null,null,null,null,null,null,null,null,22]
[null,null,null,null,null,null,null,null,null,null,null,null,null,null,null,null,null,null,null,23]
[null,null,null,null,null,null,null,null,null,null,null,null,null,null,null,null,null,null,null,24]
[null,"Event (please tick √)",null,null,null,null,"Entry Time",null,"Date Recorded",null,null,null,"Event/ Location",null,null,null,null,null,null,25]
[null,null,null,null,null,null,"(mm:ss,cc)",null,"(dd/mm/yyyy)",null,null,null,null,null,null,null,null,null,null,26]
[null,"50m",null,"Freestyle",null,null,null,null,null,null,null,null,null,null,null,null,null,null,null,27]
[null,"100m",null,"Freestyle",null,null,null,null,null,null,null,null,null,null,null,null,null,null,null,28]
[null,"200m",null,"Freestyle",null,null,null,null,null,null,null,null,null,null,null,null,null,null,null,29]
[null,"400m",null,"Freestyle",null,null,null,null,null,null,null,null,null,null,null,null,null,null,null,30]
[null,"800m",null,"Freestyle",null,null,null,null,null,null,null,null,null,null,null,null,null,null,null,31]
[null,"1500m",null,"Freestyle"]
[null,"50m",null,"Backstroke"]
[null,"100m",null,"Backstroke"]
[null,"200m",null,"Backstroke"]
[null,"50m",null,"Breaststroke"]
[null,"100m",null,"Breaststroke"]
[null,"200m",null,"Breaststroke"]
[null,"50m",null,"Butterfly"]
[null,"100m",null,"Butterfly"]
[null,"200m",null,"Butterfly"]
[null,"200m",null,"Ind Medley"]
[null,"400m",null,"Ind Medley"]
[]
[]
[null,"MEDIA INFORMATION"]
[]
[null,"Best Performances",null,null,null,null,null,null,null,null," ",null,"Event",null,null,"Time"]
[null,"Seson",null,"Championship",null,null,null,null,null,null,"Position",null,"distance","style"," ","(mm:ss,cc)"]

{"sheet":"20","index":21,"n_rows":50,"n_cols":23,"rows_kept":50,"cut":false,"hidden":false,"merged":[[50,3,50,8],[51,3,51,8],[52,3,52,8],[53,3,53,8],[54,3,54,8],[41,8,41,10],[41,12,41,15],[42,8,42,10],[42,12,42,15],[43,8,43,10],[43,12,43,15],[38,8,38,10],[38,12,38,15],[39,8,39,10],[39,12,39,15],[40,8,40,10],[40,12,40,15],[35,8,35,10],[35,12,35,15],[36,8,36,10],[36,12,36,15],[37,8,37,10],[37,12,37,15],[32,8,32,10],[32,12,32,15],[33,8,33,10],[33,12,33,15],[34,8,34,10],[34,12,34,15],[29,8,29,10],[29,12,29,15],[30,8,30,10],[30,12,30,15],[31,8,31,10],[31,12,31,15],[28,8,28,10],[28,12,28,15],[5,2,5,14],[6,1,6,15],[7,1,7,15],[8,1,8,15],[9,1,9,15],[13,1,13,9],[13,11,13,15],[16,1,16,6],[16,8,16,15],[26,8,26,10],[27,8,27,10],[27,12,27,15]]}
[]
[null,null,null,null,null,null,null,null,null,null,null,null,null,null,null,null,null,null,"FEMALE",1,1,"50m","Freestyle"]
[null,null,null,null,null,null,null,null,null,null,null,null,null,null,null,null,null,null,"MALE",2,2,"100m","Backstroke"]
[null,null,null,null,null,null,null,null,null,null,null,null,null,null,null,null,null,null,null,3,3,"200m","Breaststroke"]
[null,null,null,null,null,null,null,null,null,null,null,null,null,null,null,null,null,null,null,4,4,"400m","Butterfly"]
[null,null,"INDIVIDUAL ENTRY FORM",null,null,null,null,null,null,null,null,null,null,null,null,null,null,null,null,5,5,"800m","Ind Medley"]
[null,"To be received by Barcelona OC no later than Tuesday 31th May 2016",null,null,null,null,null,null,null,null,null,null,null,null,null,null,null,null,null,6,6,"1500m"]
[null,"Please return form by email to natacio@natacio.cat and ciutatdebarcelona@cnsantandreu.com",null,null,null,null,null,null,null,null,null,null,null,null,null,null,null,null,null,7,7,"5K"]
[null,"Please complete form in BLOCK LETTERS in English",null,null,null,null,null,null,null,null,null,null,null,null,null,null,null,null,null,8,8,"10K"]
[null,"REMEMBER, this form must be send with the TEAM SUMMARY FORM",null,null,null,null,null,null,null,null,null,null,null,null,null,null,null,null,null,9,9,"25K"]
[null,null,null,null,null,null,null,null,null,null,null,null,null,null,null,null,null,null,null,10,10]
[null,null,null,null,null,null,null,null,null,null,null,null,null,null,null,null,null,null,null,11,11]
[null,"Federation/ Club:",null,null,null,null,null,null,null,null,null,"Country:",null,null,null,null,null,null,null,12,12]
[null,{"$f":"+'Team Summary Form'!B13","v":0},null,null,null,null,null,null,null,null,null,{"$f":"+'Team Summary Form'!K13","v":""},null,null,null,null,null,null,null,13]
[null,null,null,null,null,null,null,null,null,null,null,null,null,null,null,null,null,null,null,14]
[null,"First Name (as shown on passport):",null,null,null,null,null,null,"Surname (as shown on passport):",null,null,null,null,null,null,null,null,null,null,15,null,null,"hfgf"]
[null,null,null,null,null,null,null,null,null,null,null,null,null,null,null,null,null,null,null,16]
[null," ",null,null,null,null,null,null,null,null,null,null,null,null,null,null,null,null,null,17]
[null,"Gender:",null,null,null,null,null,null,"Date of Birth (Day / Month / Year):",null,null,null,null,null,null,null,null,null,null,18]
[null,null,null,null,null,null,null,null,null,null,null,null,null,null,null,null,null,null,null,19]
[null,null,null,null,null,null,null,null,null,null,null,null,null,null,null,null,null,null,null,20]
[null,null,null,null,null,null,null,null,null,null,null,null,null,null,null,null,null,null,null,21]
[null,"ENTRY INFORMATION",null,null,null,null,null,null,null,null,null,null,null,null,null,null,null,null,null,22]
[null,null,null,null,null,null,null,null,null,null,null,null,null,null,null,null,null,null,null,23]
[null,null,null,null,null,null,null,null,null,null,null,null,null,null,null,null,null,null,null,24]
[null,"Event (please tick √)",null,null,null,null,"Entry Time",null,"Date Recorded",null,null,null,"Event/ Location",null,null,null,null,null,null,25]
[null,null,null,null,null,null,"(mm:ss,cc)",null,"(dd/mm/yyyy)",null,null,null,null,null,null,null,null,null,null,26]
[null,"50m",null,"Freestyle",null,null,null,null,null,null,null,null,null,null,null,null,null,null,null,27]
[null,"100m",null,"Freestyle",null,null,null,null,null,null,null,null,null,null,null,null,null,null,null,28]
[null,"200m",null,"Freestyle",null,null,null,null,null,null,null,null,null,null,null,null,null,null,null,29]
[null,"400m",null,"Freestyle",null,null,null,null,null,null,null,null,null,null,null,null,null,null,null,30]
[null,"800m",null,"Freestyle",null,null,null,null,null,null,null,null,null,null,null,null,null,null,null,31]
[null,"1500m",null,"Freestyle"]
[null,"50m",null,"Backstroke"]
[null,"100m",null,"Backstroke"]
[null,"200m",null,"Backstroke"]
[null,"50m",null,"Breaststroke"]
[null,"100m",null,"Breaststroke"]
[null,"200m",null,"Breaststroke"]
[null,"50m",null,"Butterfly"]
[null,"100m",null,"Butterfly"]
[null,"200m",null,"Butterfly"]
[null,"200m",null,"Ind Medley"]
[null,"400m",null,"Ind Medley"]
[]
[]
[null,"MEDIA INFORMATION"]
[]
[null,"Best Performances",null,null,null,null,null,null,null,null," ",null,"Event",null,null,"Time"]
[null,"Seson",null,"Championship",null,null,null,null,null,null,"Position",null,"distance","style"," ","(mm:ss,cc)"]

{"sheet":"21","index":22,"n_rows":50,"n_cols":23,"rows_kept":50,"cut":false,"hidden":false,"merged":[[50,3,50,8],[51,3,51,8],[52,3,52,8],[53,3,53,8],[54,3,54,8],[41,8,41,10],[41,12,41,15],[42,8,42,10],[42,12,42,15],[43,8,43,10],[43,12,43,15],[38,8,38,10],[38,12,38,15],[39,8,39,10],[39,12,39,15],[40,8,40,10],[40,12,40,15],[35,8,35,10],[35,12,35,15],[36,8,36,10],[36,12,36,15],[37,8,37,10],[37,12,37,15],[32,8,32,10],[32,12,32,15],[33,8,33,10],[33,12,33,15],[34,8,34,10],[34,12,34,15],[29,8,29,10],[29,12,29,15],[30,8,30,10],[30,12,30,15],[31,8,31,10],[31,12,31,15],[28,8,28,10],[28,12,28,15],[5,2,5,14],[6,1,6,15],[7,1,7,15],[8,1,8,15],[9,1,9,15],[13,1,13,9],[13,11,13,15],[16,1,16,6],[16,8,16,15],[26,8,26,10],[27,8,27,10],[27,12,27,15]]}
[]
[null,null,null,null,null,null,null,null,null,null,null,null,null,null,null,null,null,null,"FEMALE",1,1,"50m","Freestyle"]
[null,null,null,null,null,null,null,null,null,null,null,null,null,null,null,null,null,null,"MALE",2,2,"100m","Backstroke"]
[null,null,null,null,null,null,null,null,null,null,null,null,null,null,null,null,null,null,null,3,3,"200m","Breaststroke"]
[null,null,null,null,null,null,null,null,null,null,null,null,null,null,null,null,null,null,null,4,4,"400m","Butterfly"]
[null,null,"INDIVIDUAL ENTRY FORM",null,null,null,null,null,null,null,null,null,null,null,null,null,null,null,null,5,5,"800m","Ind Medley"]
[null,"To be received by Barcelona OC no later than Tuesday 31th May 2016",null,null,null,null,null,null,null,null,null,null,null,null,null,null,null,null,null,6,6,"1500m"]
[null,"Please return form by email to natacio@natacio.cat and ciutatdebarcelona@cnsantandreu.com",null,null,null,null,null,null,null,null,null,null,null,null,null,null,null,null,null,7,7,"5K"]
[null,"Please complete form in BLOCK LETTERS in English",null,null,null,null,null,null,null,null,null,null,null,null,null,null,null,null,null,8,8,"10K"]
[null,"REMEMBER, this form must be send with the TEAM SUMMARY FORM",null,null,null,null,null,null,null,null,null,null,null,null,null,null,null,null,null,9,9,"25K"]
[null,null,null,null,null,null,null,null,null,null,null,null,null,null,null,null,null,null,null,10,10]
[null,null,null,null,null,null,null,null,null,null,null,null,null,null,null,null,null,null,null,11,11]
[null,"Federation/ Club:",null,null,null,null,null,null,null,null,null,"Country:",null,null,null,null,null,null,null,12,12]
[null,{"$f":"+'Team Summary Form'!B13","v":0},null,null,null,null,null,null,null,null,null,{"$f":"+'Team Summary Form'!K13","v":""},null,null,null,null,null,null,null,13]
[null,null,null,null,null,null,null,null,null,null,null,null,null,null,null,null,null,null,null,14]
[null,"First Name (as shown on passport):",null,null,null,null,null,null,"Surname (as shown on passport):",null,null,null,null,null,null,null,null,null,null,15,null,null,"hfgf"]
[null,null,null,null,null,null,null,null,null,null,null,null,null,null,null,null,null,null,null,16]
[null," ",null,null,null,null,null,null,null,null,null,null,null,null,null,null,null,null,null,17]
[null,"Gender:",null,null,null,null,null,null,"Date of Birth (Day / Month / Year):",null,null,null,null,null,null,null,null,null,null,18]
[null,null,null,null,null,null,null,null,null,null,null,null,null,null,null,null,null,null,null,19]
[null,null,null,null,null,null,null,null,null,null,null,null,null,null,null,null,null,null,null,20]
[null,null,null,null,null,null,null,null,null,null,null,null,null,null,null,null,null,null,null,21]
[null,"ENTRY INFORMATION",null,null,null,null,null,null,null,null,null,null,null,null,null,null,null,null,null,22]
[null,null,null,null,null,null,null,null,null,null,null,null,null,null,null,null,null,null,null,23]
[null,null,null,null,null,null,null,null,null,null,null,null,null,null,null,null,null,null,null,24]
[null,"Event (please tick √)",null,null,null,null,"Entry Time",null,"Date Recorded",null,null,null,"Event/ Location",null,null,null,null,null,null,25]
[null,null,null,null,null,null,"(mm:ss,cc)",null,"(dd/mm/yyyy)",null,null,null,null,null,null,null,null,null,null,26]
[null,"50m",null,"Freestyle",null,null,null,null,null,null,null,null,null,null,null,null,null,null,null,27]
[null,"100m",null,"Freestyle",null,null,null,null,null,null,null,null,null,null,null,null,null,null,null,28]
[null,"200m",null,"Freestyle",null,null,null,null,null,null,null,null,null,null,null,null,null,null,null,29]
[null,"400m",null,"Freestyle",null,null,null,null,null,null,null,null,null,null,null,null,null,null,null,30]
[null,"800m",null,"Freestyle",null,null,null,null,null,null,null,null,null,null,null,null,null,null,null,31]
[null,"1500m",null,"Freestyle"]
[null,"50m",null,"Backstroke"]
[null,"100m",null,"Backstroke"]
[null,"200m",null,"Backstroke"]
[null,"50m",null,"Breaststroke"]
[null,"100m",null,"Breaststroke"]
[null,"200m",null,"Breaststroke"]
[null,"50m",null,"Butterfly"]
[null,"100m",null,"Butterfly"]
[null,"200m",null,"Butterfly"]
[null,"200m",null,"Ind Medley"]
[null,"400m",null,"Ind Medley"]
[]
[]
[null,"MEDIA INFORMATION"]
[]
[null,"Best Performances",null,null,null,null,null,null,null,null," ",null,"Event",null,null,"Time"]
[null,"Seson",null,"Championship",null,null,null,null,null,null,"Position",null,"distance","style"," ","(mm:ss,cc)"]

{"sheet":"22","index":23,"n_rows":50,"n_cols":23,"rows_kept":50,"cut":false,"hidden":false,"merged":[[50,3,50,8],[51,3,51,8],[52,3,52,8],[53,3,53,8],[54,3,54,8],[41,8,41,10],[41,12,41,15],[42,8,42,10],[42,12,42,15],[43,8,43,10],[43,12,43,15],[38,8,38,10],[38,12,38,15],[39,8,39,10],[39,12,39,15],[40,8,40,10],[40,12,40,15],[35,8,35,10],[35,12,35,15],[36,8,36,10],[36,12,36,15],[37,8,37,10],[37,12,37,15],[32,8,32,10],[32,12,32,15],[33,8,33,10],[33,12,33,15],[34,8,34,10],[34,12,34,15],[29,8,29,10],[29,12,29,15],[30,8,30,10],[30,12,30,15],[31,8,31,10],[31,12,31,15],[28,8,28,10],[28,12,28,15],[5,2,5,14],[6,1,6,15],[7,1,7,15],[8,1,8,15],[9,1,9,15],[13,1,13,9],[13,11,13,15],[16,1,16,6],[16,8,16,15],[26,8,26,10],[27,8,27,10],[27,12,27,15]]}
[]
[null,null,null,null,null,null,null,null,null,null,null,null,null,null,null,null,null,null,"FEMALE",1,1,"50m","Freestyle"]
[null,null,null,null,null,null,null,null,null,null,null,null,null,null,null,null,null,null,"MALE",2,2,"100m","Backstroke"]
[null,null,null,null,null,null,null,null,null,null,null,null,null,null,null,null,null,null,null,3,3,"200m","Breaststroke"]
[null,null,null,null,null,null,null,null,null,null,null,null,null,null,null,null,null,null,null,4,4,"400m","Butterfly"]
[null,null,"INDIVIDUAL ENTRY FORM",null,null,null,null,null,null,null,null,null,null,null,null,null,null,null,null,5,5,"800m","Ind Medley"]
[null,"To be received by Barcelona OC no later than Tuesday 31th May 2016",null,null,null,null,null,null,null,null,null,null,null,null,null,null,null,null,null,6,6,"1500m"]
[null,"Please return form by email to natacio@natacio.cat and ciutatdebarcelona@cnsantandreu.com",null,null,null,null,null,null,null,null,null,null,null,null,null,null,null,null,null,7,7,"5K"]
[null,"Please complete form in BLOCK LETTERS in English",null,null,null,null,null,null,null,null,null,null,null,null,null,null,null,null,null,8,8,"10K"]
[null,"REMEMBER, this form must be send with the TEAM SUMMARY FORM",null,null,null,null,null,null,null,null,null,null,null,null,null,null,null,null,null,9,9,"25K"]
[null,null,null,null,null,null,null,null,null,null,null,null,null,null,null,null,null,null,null,10,10]
[null,null,null,null,null,null,null,null,null,null,null,null,null,null,null,null,null,null,null,11,11]
[null,"Federation/ Club:",null,null,null,null,null,null,null,null,null,"Country:",null,null,null,null,null,null,null,12,12]
[null,{"$f":"+'Team Summary Form'!B13","v":0},null,null,null,null,null,null,null,null,null,{"$f":"+'Team Summary Form'!K13","v":""},null,null,null,null,null,null,null,13]
[null,null,null,null,null,null,null,null,null,null,null,null,null,null,null,null,null,null,null,14]
[null,"First Name (as shown on passport):",null,null,null,null,null,null,"Surname (as shown on passport):",null,null,null,null,null,null,null,null,null,null,15,null,null,"hfgf"]
[null,null,null,null,null,null,null,null,null,null,null,null,null,null,null,null,null,null,null,16]
[null," ",null,null,null,null,null,null,null,null,null,null,null,null,null,null,null,null,null,17]
[null,"Gender:",null,null,null,null,null,null,"Date of Birth (Day / Month / Year):",null,null,null,null,null,null,null,null,null,null,18]
[null,null,null,null,null,null,null,null,null,null,null,null,null,null,null,null,null,null,null,19]
[null,null,null,null,null,null,null,null,null,null,null,null,null,null,null,null,null,null,null,20]
[null,null,null,null,null,null,null,null,null,null,null,null,null,null,null,null,null,null,null,21]
[null,"ENTRY INFORMATION",null,null,null,null,null,null,null,null,null,null,null,null,null,null,null,null,null,22]
[null,null,null,null,null,null,null,null,null,null,null,null,null,null,null,null,null,null,null,23]
[null,null,null,null,null,null,null,null,null,null,null,null,null,null,null,null,null,null,null,24]
[null,"Event (please tick √)",null,null,null,null,"Entry Time",null,"Date Recorded",null,null,null,"Event/ Location",null,null,null,null,null,null,25]
[null,null,null,null,null,null,"(mm:ss,cc)",null,"(dd/mm/yyyy)",null,null,null,null,null,null,null,null,null,null,26]
[null,"50m",null,"Freestyle",null,null,null,null,null,null,null,null,null,null,null,null,null,null,null,27]
[null,"100m",null,"Freestyle",null,null,null,null,null,null,null,null,null,null,null,null,null,null,null,28]
[null,"200m",null,"Freestyle",null,null,null,null,null,null,null,null,null,null,null,null,null,null,null,29]
[null,"400m",null,"Freestyle",null,null,null,null,null,null,null,null,null,null,null,null,null,null,null,30]
[null,"800m",null,"Freestyle",null,null,null,null,null,null,null,null,null,null,null,null,null,null,null,31]
[null,"1500m",null,"Freestyle"]
[null,"50m",null,"Backstroke"]
[null,"100m",null,"Backstroke"]
[null,"200m",null,"Backstroke"]
[null,"50m",null,"Breaststroke"]
[null,"100m",null,"Breaststroke"]
[null,"200m",null,"Breaststroke"]
[null,"50m",null,"Butterfly"]
[null,"100m",null,"Butterfly"]
[null,"200m",null,"Butterfly"]
[null,"200m",null,"Ind Medley"]
[null,"400m",null,"Ind Medley"]
[]
[]
[null,"MEDIA INFORMATION"]
[]
[null,"Best Performances",null,null,null,null,null,null,null,null," ",null,"Event",null,null,"Time"]
[null,"Seson",null,"Championship",null,null,null,null,null,null,"Position",null,"distance","style"," ","(mm:ss,cc)"]

{"sheet":"23","index":24,"n_rows":50,"n_cols":23,"rows_kept":50,"cut":false,"hidden":false,"merged":[[50,3,50,8],[51,3,51,8],[52,3,52,8],[53,3,53,8],[54,3,54,8],[41,8,41,10],[41,12,41,15],[42,8,42,10],[42,12,42,15],[43,8,43,10],[43,12,43,15],[38,8,38,10],[38,12,38,15],[39,8,39,10],[39,12,39,15],[40,8,40,10],[40,12,40,15],[35,8,35,10],[35,12,35,15],[36,8,36,10],[36,12,36,15],[37,8,37,10],[37,12,37,15],[32,8,32,10],[32,12,32,15],[33,8,33,10],[33,12,33,15],[34,8,34,10],[34,12,34,15],[29,8,29,10],[29,12,29,15],[30,8,30,10],[30,12,30,15],[31,8,31,10],[31,12,31,15],[28,8,28,10],[28,12,28,15],[5,2,5,14],[6,1,6,15],[7,1,7,15],[8,1,8,15],[9,1,9,15],[13,1,13,9],[13,11,13,15],[16,1,16,6],[16,8,16,15],[26,8,26,10],[27,8,27,10],[27,12,27,15]]}
[]
[null,null,null,null,null,null,null,null,null,null,null,null,null,null,null,null,null,null,"FEMALE",1,1,"50m","Freestyle"]
[null,null,null,null,null,null,null,null,null,null,null,null,null,null,null,null,null,null,"MALE",2,2,"100m","Backstroke"]
[null,null,null,null,null,null,null,null,null,null,null,null,null,null,null,null,null,null,null,3,3,"200m","Breaststroke"]
[null,null,null,null,null,null,null,null,null,null,null,null,null,null,null,null,null,null,null,4,4,"400m","Butterfly"]
[null,null,"INDIVIDUAL ENTRY FORM",null,null,null,null,null,null,null,null,null,null,null,null,null,null,null,null,5,5,"800m","Ind Medley"]
[null,"To be received by Barcelona OC no later than Tuesday 31th May 2016",null,null,null,null,null,null,null,null,null,null,null,null,null,null,null,null,null,6,6,"1500m"]
[null,"Please return form by email to natacio@natacio.cat and ciutatdebarcelona@cnsantandreu.com",null,null,null,null,null,null,null,null,null,null,null,null,null,null,null,null,null,7,7,"5K"]
[null,"Please complete form in BLOCK LETTERS in English",null,null,null,null,null,null,null,null,null,null,null,null,null,null,null,null,null,8,8,"10K"]
[null,"REMEMBER, this form must be send with the TEAM SUMMARY FORM",null,null,null,null,null,null,null,null,null,null,null,null,null,null,null,null,null,9,9,"25K"]
[null,null,null,null,null,null,null,null,null,null,null,null,null,null,null,null,null,null,null,10,10]
[null,null,null,null,null,null,null,null,null,null,null,null,null,null,null,null,null,null,null,11,11]
[null,"Federation/ Club:",null,null,null,null,null,null,null,null,null,"Country:",null,null,null,null,null,null,null,12,12]
[null,{"$f":"+'Team Summary Form'!B13","v":0},null,null,null,null,null,null,null,null,null,{"$f":"+'Team Summary Form'!K13","v":""},null,null,null,null,null,null,null,13]
[null,null,null,null,null,null,null,null,null,null,null,null,null,null,null,null,null,null,null,14]
[null,"First Name (as shown on passport):",null,null,null,null,null,null,"Surname (as shown on passport):",null,null,null,null,null,null,null,null,null,null,15,null,null,"hfgf"]
[null,null,null,null,null,null,null,null,null,null,null,null,null,null,null,null,null,null,null,16]
[null," ",null,null,null,null,null,null,null,null,null,null,null,null,null,null,null,null,null,17]
[null,"Gender:",null,null,null,null,null,null,"Date of Birth (Day / Month / Year):",null,null,null,null,null,null,null,null,null,null,18]
[null,null,null,null,null,null,null,null,null,null,null,null,null,null,null,null,null,null,null,19]
[null,null,null,null,null,null,null,null,null,null,null,null,null,null,null,null,null,null,null,20]
[null,null,null,null,null,null,null,null,null,null,null,null,null,null,null,null,null,null,null,21]
[null,"ENTRY INFORMATION",null,null,null,null,null,null,null,null,null,null,null,null,null,null,null,null,null,22]
[null,null,null,null,null,null,null,null,null,null,null,null,null,null,null,null,null,null,null,23]
[null,null,null,null,null,null,null,null,null,null,null,null,null,null,null,null,null,null,null,24]
[null,"Event (please tick √)",null,null,null,null,"Entry Time",null,"Date Recorded",null,null,null,"Event/ Location",null,null,null,null,null,null,25]
[null,null,null,null,null,null,"(mm:ss,cc)",null,"(dd/mm/yyyy)",null,null,null,null,null,null,null,null,null,null,26]
[null,"50m",null,"Freestyle",null,null,null,null,null,null,null,null,null,null,null,null,null,null,null,27]
[null,"100m",null,"Freestyle",null,null,null,null,null,null,null,null,null,null,null,null,null,null,null,28]
[null,"200m",null,"Freestyle",null,null,null,null,null,null,null,null,null,null,null,null,null,null,null,29]
[null,"400m",null,"Freestyle",null,null,null,null,null,null,null,null,null,null,null,null,null,null,null,30]
[null,"800m",null,"Freestyle",null,null,null,null,null,null,null,null,null,null,null,null,null,null,null,31]
[null,"1500m",null,"Freestyle"]
[null,"50m",null,"Backstroke"]
[null,"100m",null,"Backstroke"]
[null,"200m",null,"Backstroke"]
[null,"50m",null,"Breaststroke"]
[null,"100m",null,"Breaststroke"]
[null,"200m",null,"Breaststroke"]
[null,"50m",null,"Butterfly"]
[null,"100m",null,"Butterfly"]
[null,"200m",null,"Butterfly"]
[null,"200m",null,"Ind Medley"]
[null,"400m",null,"Ind Medley"]
[]
[]
[null,"MEDIA INFORMATION"]
[]
[null,"Best Performances",null,null,null,null,null,null,null,null," ",null,"Event",null,null,"Time"]
[null,"Seson",null,"Championship",null,null,null,null,null,null,"Position",null,"distance","style"," ","(mm:ss,cc)"]

{"sheet":"24","index":25,"n_rows":50,"n_cols":23,"rows_kept":50,"cut":false,"hidden":false,"merged":[[50,3,50,8],[51,3,51,8],[52,3,52,8],[53,3,53,8],[54,3,54,8],[41,8,41,10],[41,12,41,15],[42,8,42,10],[42,12,42,15],[43,8,43,10],[43,12,43,15],[38,8,38,10],[38,12,38,15],[39,8,39,10],[39,12,39,15],[40,8,40,10],[40,12,40,15],[35,8,35,10],[35,12,35,15],[36,8,36,10],[36,12,36,15],[37,8,37,10],[37,12,37,15],[32,8,32,10],[32,12,32,15],[33,8,33,10],[33,12,33,15],[34,8,34,10],[34,12,34,15],[29,8,29,10],[29,12,29,15],[30,8,30,10],[30,12,30,15],[31,8,31,10],[31,12,31,15],[28,8,28,10],[28,12,28,15],[5,2,5,14],[6,1,6,15],[7,1,7,15],[8,1,8,15],[9,1,9,15],[13,1,13,9],[13,11,13,15],[16,1,16,6],[16,8,16,15],[26,8,26,10],[27,8,27,10],[27,12,27,15]]}
[]
[null,null,null,null,null,null,null,null,null,null,null,null,null,null,null,null,null,null,"FEMALE",1,1,"50m","Freestyle"]
[null,null,null,null,null,null,null,null,null,null,null,null,null,null,null,null,null,null,"MALE",2,2,"100m","Backstroke"]
[null,null,null,null,null,null,null,null,null,null,null,null,null,null,null,null,null,null,null,3,3,"200m","Breaststroke"]
[null,null,null,null,null,null,null,null,null,null,null,null,null,null,null,null,null,null,null,4,4,"400m","Butterfly"]
[null,null,"INDIVIDUAL ENTRY FORM",null,null,null,null,null,null,null,null,null,null,null,null,null,null,null,null,5,5,"800m","Ind Medley"]
[null,"To be received by Barcelona OC no later than Tuesday 31th May 2016",null,null,null,null,null,null,null,null,null,null,null,null,null,null,null,null,null,6,6,"1500m"]
[null,"Please return form by email to natacio@natacio.cat and ciutatdebarcelona@cnsantandreu.com",null,null,null,null,null,null,null,null,null,null,null,null,null,null,null,null,null,7,7,"5K"]
[null,"Please complete form in BLOCK LETTERS in English",null,null,null,null,null,null,null,null,null,null,null,null,null,null,null,null,null,8,8,"10K"]
[null,"REMEMBER, this form must be send with the TEAM SUMMARY FORM",null,null,null,null,null,null,null,null,null,null,null,null,null,null,null,null,null,9,9,"25K"]
[null,null,null,null,null,null,null,null,null,null,null,null,null,null,null,null,null,null,null,10,10]
[null,null,null,null,null,null,null,null,null,null,null,null,null,null,null,null,null,null,null,11,11]
[null,"Federation/ Club:",null,null,null,null,null,null,null,null,null,"Country:",null,null,null,null,null,null,null,12,12]
[null,{"$f":"+'Team Summary Form'!B13","v":0},null,null,null,null,null,null,null,null,null,{"$f":"+'Team Summary Form'!K13","v":""},null,null,null,null,null,null,null,13]
[null,null,null,null,null,null,null,null,null,null,null,null,null,null,null,null,null,null,null,14]
[null,"First Name (as shown on passport):",null,null,null,null,null,null,"Surname (as shown on passport):",null,null,null,null,null,null,null,null,null,null,15,null,null,"hfgf"]
[null,null,null,null,null,null,null,null,null,null,null,null,null,null,null,null,null,null,null,16]
[null," ",null,null,null,null,null,null,null,null,null,null,null,null,null,null,null,null,null,17]
[null,"Gender:",null,null,null,null,null,null,"Date of Birth (Day / Month / Year):",null,null,null,null,null,null,null,null,null,null,18]
[null,null,null,null,null,null,null,null,null,null,null,null,null,null,null,null,null,null,null,19]
[null,null,null,null,null,null,null,null,null,null,null,null,null,null,null,null,null,null,null,20]
[null,null,null,null,null,null,null,null,null,null,null,null,null,null,null,null,null,null,null,21]
[null,"ENTRY INFORMATION",null,null,null,null,null,null,null,null,null,null,null,null,null,null,null,null,null,22]
[null,null,null,null,null,null,null,null,null,null,null,null,null,null,null,null,null,null,null,23]
[null,null,null,null,null,null,null,null,null,null,null,null,null,null,null,null,null,null,null,24]
[null,"Event (please tick √)",null,null,null,null,"Entry Time",null,"Date Recorded",null,null,null,"Event/ Location",null,null,null,null,null,null,25]
[null,null,null,null,null,null,"(mm:ss,cc)",null,"(dd/mm/yyyy)",null,null,null,null,null,null,null,null,null,null,26]
[null,"50m",null,"Freestyle",null,null,null,null,null,null,null,null,null,null,null,null,null,null,null,27]
[null,"100m",null,"Freestyle",null,null,null,null,null,null,null,null,null,null,null,null,null,null,null,28]
[null,"200m",null,"Freestyle",null,null,null,null,null,null,null,null,null,null,null,null,null,null,null,29]
[null,"400m",null,"Freestyle",null,null,null,null,null,null,null,null,null,null,null,null,null,null,null,30]
[null,"800m",null,"Freestyle",null,null,null,null,null,null,null,null,null,null,null,null,null,null,null,31]
[null,"1500m",null,"Freestyle"]
[null,"50m",null,"Backstroke"]
[null,"100m",null,"Backstroke"]
[null,"200m",null,"Backstroke"]
[null,"50m",null,"Breaststroke"]
[null,"100m",null,"Breaststroke"]
[null,"200m",null,"Breaststroke"]
[null,"50m",null,"Butterfly"]
[null,"100m",null,"Butterfly"]
[null,"200m",null,"Butterfly"]
[null,"200m",null,"Ind Medley"]
[null,"400m",null,"Ind Medley"]
[]
[]
[null,"MEDIA INFORMATION"]
[]
[null,"Best Performances",null,null,null,null,null,null,null,null," ",null,"Event",null,null,"Time"]
[null,"Seson",null,"Championship",null,null,null,null,null,null,"Position",null,"distance","style"," ","(mm:ss,cc)"]

{"sheet":"25","index":26,"n_rows":50,"n_cols":23,"rows_kept":50,"cut":false,"hidden":false,"merged":[[50,3,50,8],[51,3,51,8],[52,3,52,8],[53,3,53,8],[54,3,54,8],[41,8,41,10],[41,12,41,15],[42,8,42,10],[42,12,42,15],[43,8,43,10],[43,12,43,15],[38,8,38,10],[38,12,38,15],[39,8,39,10],[39,12,39,15],[40,8,40,10],[40,12,40,15],[35,8,35,10],[35,12,35,15],[36,8,36,10],[36,12,36,15],[37,8,37,10],[37,12,37,15],[32,8,32,10],[32,12,32,15],[33,8,33,10],[33,12,33,15],[34,8,34,10],[34,12,34,15],[29,8,29,10],[29,12,29,15],[30,8,30,10],[30,12,30,15],[31,8,31,10],[31,12,31,15],[28,8,28,10],[28,12,28,15],[5,2,5,14],[6,1,6,15],[7,1,7,15],[8,1,8,15],[9,1,9,15],[13,1,13,9],[13,11,13,15],[16,1,16,6],[16,8,16,15],[26,8,26,10],[27,8,27,10],[27,12,27,15]]}
[]
[null,null,null,null,null,null,null,null,null,null,null,null,null,null,null,null,null,null,"FEMALE",1,1,"50m","Freestyle"]
[null,null,null,null,null,null,null,null,null,null,null,null,null,null,null,null,null,null,"MALE",2,2,"100m","Backstroke"]
[null,null,null,null,null,null,null,null,null,null,null,null,null,null,null,null,null,null,null,3,3,"200m","Breaststroke"]
[null,null,null,null,null,null,null,null,null,null,null,null,null,null,null,null,null,null,null,4,4,"400m","Butterfly"]
[null,null,"INDIVIDUAL ENTRY FORM",null,null,null,null,null,null,null,null,null,null,null,null,null,null,null,null,5,5,"800m","Ind Medley"]
[null,"To be received by Barcelona OC no later than Tuesday 31th May 2016",null,null,null,null,null,null,null,null,null,null,null,null,null,null,null,null,null,6,6,"1500m"]
[null,"Please return form by email to natacio@natacio.cat and ciutatdebarcelona@cnsantandreu.com",null,null,null,null,null,null,null,null,null,null,null,null,null,null,null,null,null,7,7,"5K"]
[null,"Please complete form in BLOCK LETTERS in English",null,null,null,null,null,null,null,null,null,null,null,null,null,null,null,null,null,8,8,"10K"]
[null,"REMEMBER, this form must be send with the TEAM SUMMARY FORM",null,null,null,null,null,null,null,null,null,null,null,null,null,null,null,null,null,9,9,"25K"]
[null,null,null,null,null,null,null,null,null,null,null,null,null,null,null,null,null,null,null,10,10]
[null,null,null,null,null,null,null,null,null,null,null,null,null,null,null,null,null,null,null,11,11]
[null,"Federation/ Club:",null,null,null,null,null,null,null,null,null,"Country:",null,null,null,null,null,null,null,12,12]
[null,{"$f":"+'Team Summary Form'!B13","v":0},null,null,null,null,null,null,null,null,null,{"$f":"+'Team Summary Form'!K13","v":""},null,null,null,null,null,null,null,13]
[null,null,null,null,null,null,null,null,null,null,null,null,null,null,null,null,null,null,null,14]
[null,"First Name (as shown on passport):",null,null,null,null,null,null,"Surname (as shown on passport):",null,null,null,null,null,null,null,null,null,null,15,null,null,"hfgf"]
[null,null,null,null,null,null,null,null,null,null,null,null,null,null,null,null,null,null,null,16]
[null," ",null,null,null,null,null,null,null,null,null,null,null,null,null,null,null,null,null,17]
[null,"Gender:",null,null,null,null,null,null,"Date of Birth (Day / Month / Year):",null,null,null,null,null,null,null,null,null,null,18]
[null,null,null,null,null,null,null,null,null,null,null,null,null,null,null,null,null,null,null,19]
[null,null,null,null,null,null,null,null,null,null,null,null,null,null,null,null,null,null,null,20]
[null,null,null,null,null,null,null,null,null,null,null,null,null,null,null,null,null,null,null,21]
[null,"ENTRY INFORMATION",null,null,null,null,null,null,null,null,null,null,null,null,null,null,null,null,null,22]
[null,null,null,null,null,null,null,null,null,null,null,null,null,null,null,null,null,null,null,23]
[null,null,null,null,null,null,null,null,null,null,null,null,null,null,null,null,null,null,null,24]
[null,"Event (please tick √)",null,null,null,null,"Entry Time",null,"Date Recorded",null,null,null,"Event/ Location",null,null,null,null,null,null,25]
[null,null,null,null,null,null,"(mm:ss,cc)",null,"(dd/mm/yyyy)",null,null,null,null,null,null,null,null,null,null,26]
[null,"50m",null,"Freestyle",null,null,null,null,null,null,null,null,null,null,null,null,null,null,null,27]
[null,"100m",null,"Freestyle",null,null,null,null,null,null,null,null,null,null,null,null,null,null,null,28]
[null,"200m",null,"Freestyle",null,null,null,null,null,null,null,null,null,null,null,null,null,null,null,29]
[null,"400m",null,"Freestyle",null,null,null,null,null,null,null,null,null,null,null,null,null,null,null,30]
[null,"800m",null,"Freestyle",null,null,null,null,null,null,null,null,null,null,null,null,null,null,null,31]
[null,"1500m",null,"Freestyle"]
[null,"50m",null,"Backstroke"]
[null,"100m",null,"Backstroke"]
[null,"200m",null,"Backstroke"]
[null,"50m",null,"Breaststroke"]
[null,"100m",null,"Breaststroke"]
[null,"200m",null,"Breaststroke"]
[null,"50m",null,"Butterfly"]
[null,"100m",null,"Butterfly"]
[null,"200m",null,"Butterfly"]
[null,"200m",null,"Ind Medley"]
[null,"400m",null,"Ind Medley"]
[]
[]
[null,"MEDIA INFORMATION"]
[]
[null,"Best Performances",null,null,null,null,null,null,null,null," ",null,"Event",null,null,"Time"]
[null,"Seson",null,"Championship",null,null,null,null,null,null,"Position",null,"distance","style"," ","(mm:ss,cc)"]